{"text_format":"1","workbook":"xlsx","n_sheets":3,"sheets":["Hoja2","Hoja1","Hoja3"],"not_rendered":{"charts":0,"images":1,"macros":1,"external_links":0,"defined_names":0,"comments":0,"pivot_tables":0},"unopened":[],"bounds":{"document_bytes":16777216,"sheet_cells":100000,"rows_first":2000,"rows_last":500,"rows_between":2000,"halvings":0,"cell_chars":16384,"cell_head_chars":4096},"cells_cut":0,"cells_raw":0,"read":"whole","date_system":"1900"}

{"sheet":"Hoja2","index":0,"n_rows":1008,"n_cols":22,"rows_kept":1008,"cut":false,"hidden":true,"merged":[]}
[1,"¿En qué campo artístico destacó Giovanni Bellini ?","pintura","P","I","N","T","U","R","A",null,null,null,null,null,null,null,null,null,null,null,{"$f":"CONCATENATE(D1,E1,F1,G1,H1,I1,J1,K1,L1,M1,N1,O1,P1,Q1,R1,S1,T1,U1)","v":"PINTURA"}]
[2,"¿De qué nacionalidad era el futbolista conocido como \"la saeta rubia\"?","Argentina","A","R","G","E","N","T","I","N","A",null,null,null,null,null,null,null,null,null,{"$f":"CONCATENATE(D2,E2,F2,G2,H2,I2,J2,K2,L2,M2,N2,O2,P2,Q2,R2,S2,T2,U2)","v":"ARGENTINA"}]
[3,"¿Qué es el esternocleidomastoideo?","musculo","M","U","S","C","U","L","O",null,null,null,null,null,null,null,null,null,null,null,"MUSCULO"]
[4,"¿Cómo se denomina el coleccionista de monedas y medallas?","numismatico","N","U","M","I","S","M","A","T","I","C","O",null,null,null,null,null,null,null,"NUMISMATICO"]
[5,"¿Cómo se llamaba el locutor de radio del programa de cine polvo de estrellas?","Carlos Pomares","C","A","R","L","O","S",null,"P","O","M","A","R","E","S",null,null,null,null,"CARLOSPOMARES"]
[6,"¿Con qué otro nombre es más conocido el dios griego Heracles?","Hercules","H","E","R","C","U","L","E","S",null,null,null,null,null,null,null,null,null,null,"HERCULES"]
[7,"¿Qué nombre recibe la ciencia que trata del conocimiento de las monedas y de las medallas?","Numismtica ","N","U","M","I","S","M","A","T","I","C","A",null,null,null,null,null,null,null,"NUMISMATICA"]
[8,"¿Qué movimiento dirigió la llamada revolución de las \"flores\" llevada a cabo en mayo de 1968?","  Hippie ","H","I","P","P","I","E",null,null,null,null,null,null,null,null,null,null,null,null,"HIPPIE"]
[9,"¿Qué país contiene la mayor parte de los ríos Tigris y Éufrates?"," Irak ","I","R","A","K",null,null,null,null,null,null,null,null,null,null,null,null,null,null,"IRAK"]
[10,"¿ Cómo se llama el arte de criar, amaestrar y curar a los halcones y otras aves como el azor ?","Cetreria ","C","E","T","R","E","R","I","A",null,null,null,null,null,null,null,null,null,null,"CETRERIA"]
[11,"¿Qué actor era \"La mascara negra\" en la serie televisiva?","Sancho Gracia","S","A","N","C","H","O",null,"G","R","A","C","I","A",null,null,null,null,null,"SANCHOGRACIA"]
[12,"¿Cómo se denomina un dispositivo electrónico con dos electrodos?","Diodo","D","I","O","D","O",null,null,null,null,null,null,null,null,null,null,null,null,null,"DIODO"]
[13,"¿Qué británico dirigió La naranja mecánica en 1971?","Stanley Kubrick ","S","T","A","N","L","E","Y",null,"K","U","B","R","I","C","K",null,null,null,{"$f":"CONCATENATE(D13,E13,F13,G13,H13,I13,J13,K13,L13,M13,N13,O13,P13,Q13,R13,S13,T13,U13)","v":"STANLEYKUBRICK"}]
[14,"¿Cuál es la capital de Holanda?","La Haya","L","A",null,"H","A","Y","A",null,null,null,null,null,null,null,null,null,null,null,"LAHAYA"]
[15,"Hypertext Markup Language","HTML","H","T","M","L",null,null,null,null,null,null,null,null,null,null,null,null,null,null,"HTML"]
[16,"world wide web","www","W","W","W",null,null,null,null,null,null,null,null,null,null,null,null,null,null,null,"WWW"]
[17,"¿A cuantos bits equivale 1 byte ?","ocho","O","C","H","O",null,null,null,null,null,null,null,null,null,null,null,null,null,null,"OCHO"]
[18,"¿Como se llama al código de ceros y unos en que se basa la informática ?","lenguaje binario","L","E","N","G","U","A","J","E",null,"B","I","N","A","R","I","O",null,null,"LENGUAJEBINARIO"]
[19,"¿Cómo se llamó el primer ordenador digital totalmente electrónico?","Colossus ","C","O","L","O","S","S","U","S",null,null,null,null,null,null,null,null,null,null,"COLOSSUS"]
[20,"Cuál es el más importante de los sistemas operativos del mundo ?","MS-DOS","M","S",null,"D","O","S",null,null,null,null,null,null,null,null,null,null,null,null,"MSDOS"]
[21,"¿Cuál fue el antepasado más antiguo del ordenador ? el...","Abaco","A","B","A","C","O",null,null,null,null,null,null,null,null,null,null,null,null,null,"ABACO"]
[22,"¿Cuál fue el primer ordenador digital moderno?","Mark I","M","A","R","K","I",null,null,null,null,null,null,null,null,null,null,null,null,null,"MARKI"]
[23,"¿Qué comando se utiliza en MS-DOS para cambiar de una unidad a otra?","Cd","C","D",null,null,null,null,null,null,null,null,null,null,null,null,null,null,null,null,"CD"]
[24,"File Transfer Protocolo","FTP","F","T","P",null,null,null,null,null,null,null,null,null,null,null,null,null,null,null,"FTP"]
[25,"¿Qué significa el código 0 del lenguaje binario?","no pasa corriente","N","O",null,"P","A","S","A",null,"C","O","R","R","I","E","N","T","E",null,"NOPASACORRIENTE"]
[26,"¿Qué significa el código 1 del lenguaje binario?","pasa corriente","P","A","S","A",null,"C","O","R","R","I","E","N","T","E",null,null,null,null,"PASACORRIENTE"]
[27,"Random Access Memory","RAM","R","A","M",null,null,null,null,null,null,null,null,null,null,null,null,null,null,null,"RAM"]
[28,"Inventor de la radio","Guillermo Marconi","G","U","I","L","L","E","R","M","O",null,"M","A","R","C","O","N","I",null,"GUILLERMOMARCONI"]
[29,"Guillermo Marconi fue inventor de ? la... ","radio","R","A","D","I","O",null,null,null,null,null,null,null,null,null,null,null,null,null,"RADIO"]
[30,"Inventor del motor eléctrico","Michael Faraday","M","I","C","H","A","E","L",null,"F","A","R","A","D","A","Y",null,null,null,"MICHAELFARADAY"]
[31,"Michael Faraday inventor del","motor eléctrico","M","O","T","O","R",null,"E","L","E","C","T","R","I","C","O",null,null,null,"MOTORELECTRICO"]
[32,"la lámpara incandescente fue inventada por ?"," Thomas Edison","T","H","O","M","A","S",null,"E","D","I","S","O","N",null,null,null,null,null,"THOMASEDISON"]
[33,"¿Dónde se inventó la bicicleta?","Alemania","A","L","E","M","A","N","I","A",null,null,null,null,null,null,null,null,null,null,"ALEMANIA"]
[34,"¿En que país se descubrió el alcohol?","España","E","S","P","A","Ñ","A",null,null,null,null,null,null,null,null,null,null,null,null,"ESPAÑA"]
[35,"¿En que país se descubrió el cloroformo?","Estados Unidos","E","S","T","A","D","O","S",null,"U","N","I","D","O","S",null,null,null,null,"ESTADOSUNIDOS"]
[36,"¿En que país se inventó el abaco?","China","C","H","I","N","A",null,null,null,null,null,null,null,null,null,null,null,null,null,"CHINA"]
[37,"¿En que país se inventó el arado de acero?","Estados Unidos","E","S","T","A","D","O","S",null,"U","N","I","D","O","S",null,null,null,null,"ESTADOSUNIDOS"]
[38,"¿En que país se inventó el estetoscopio?","Francia","F","R","A","N","C","I","A",null,null,null,null,null,null,null,null,null,null,null,"FRANCIA"]
[39,"¿En que país se inventó el generador eléctrico?","Inglaterra","I","N","G","L","A","T","E","R","R","A",null,null,null,null,null,null,null,null,"INGLATERRA"]
[40,"En que país se inventó el neumático de goma?","Irlanda","I","R","L","A","N","D","A",null,null,null,null,null,null,null,null,null,null,null,"IRLANDA"]
[41,"¿En que país se inventó la caja registradora?","Estados Unidos","E","S","T","A","D","O","S",null,"U","N","I","D","O","S",null,null,null,null,"ESTADOSUNIDOS"]
[42,"¿ En que país se inventó la calculadora ?","Alemania","A","L","E","M","A","N","I","A",null,null,null,null,null,null,null,null,null,null,"ALEMANIA"]
[43,"¿En que país se inventó la cámara fotográfica?","Estados Unidos","E","S","T","A","D","O","S",null,"U","N","I","D","O","S",null,null,null,null,"ESTADOSUNIDOS"]
[44,"¿ quién marcó el gol en la final del mundial contra Holanda 2010 ?","Andrés Iniesta","A","N","D","R","E","S",null,"I","N","I","E","S","T","A",null,null,null,null,"ANDRESINIESTA"]
[45,"¿ con cuál equipo se enfrentó España en la final del mundial del 2010 ?","Holanda","H","O","L","A","N","D","A",null,null,null,null,null,null,null,null,null,null,null,"HOLANDA"]
[46,"Holanda se enfrentó en la final del mundial del 2010 contra... ?","España","E","S","P","A","Ñ","A",null,null,null,null,null,null,null,null,null,null,null,null,"ESPAÑA"]
[47,"Quienes fueron los finalistas del mundial de fútbol del 2010","España Holanda","E","S","P","A","Ñ","A",null,"H","O","L","A","N","D","A",null,null,null,null,"ESPAÑAHOLANDA"]
[48,"¿ Cómo se llamaba el derecho que se pagaba por el paso de los ganados ?","asadura","A","S","A","D","U","R","A",null,null,null,null,null,null,null,null,null,null,null,"ASADURA"]
[49,"Cuál es la cria del caballo","potro","P","O","T","R","O",null,null,null,null,null,null,null,null,null,null,null,null,null,"POTRO"]
[50,"Cómo se llama la parte trasera de un barco ?","popa","P","O","P","A",null,null,null,null,null,null,null,null,null,null,null,null,null,null,"POPA"]
[51,"cuál es el nombre actual de la antigua Persia ?","Irán","I","R","A","N",null,null,null,null,null,null,null,null,null,null,null,null,null,null,"IRAN"]
[52,"cómo se llama a un grupo de cerdos","piara","P","I","A","R","A",null,null,null,null,null,null,null,null,null,null,null,null,null,"PIARA"]
[53,"qué hay que añadir a la bechamel para que espese","harina","H","A","R","I","N","A",null,null,null,null,null,null,null,null,null,null,null,null,"HARINA"]
[54,"Cómo se llama cada una de las piezas que componen un mosaico","tesela","T","E","S","E","L","A",null,null,null,null,null,null,null,null,null,null,null,null,"TESELA"]
[55,"En qué programa de televisión apareció Carmén Sevilla como presentadora","en tele cupón","T","E","L","E",null,"C","U","P","O","N",null,null,null,null,null,null,null,null,"TELECUPON"]
[56,"Cuál es el país en el que hay mayor número de conejos","Australia","A","U","S","T","R","A","L","I","A",null,null,null,null,null,null,null,null,null,"AUSTRALIA"]
[57,"Qué es el cártamo","un cardo","C","A","R","D","O",null,null,null,null,null,null,null,null,null,null,null,null,null,"CARDO"]
[58,"En dónde pagarías con cruzeiros","Brasil","B","R","A","S","I","L",null,null,null,null,null,null,null,null,null,null,null,null,"BRASIL"]
[59,"En qué ciudad nació Marco Polo","Venecia","V","E","N","E","C","I","A",null,null,null,null,null,null,null,null,null,null,null,"VENECIA"]
[60,"De qué pez procede el caviar","esturión","E","S","T","U","R","I","O","N",null,null,null,null,null,null,null,null,null,null,"ESTURION"]
[61,"En las ruinas de qué ciudad podemos ver la \"Puerta de los leones\"","Micenas","M","I","C","E","N","A","S",null,null,null,null,null,null,null,null,null,null,null,"MICENAS"]
[62,"De qué país es el piloto de Fórmula 1 Nelson Piquet","Brasil","B","R","A","S","I","L",null,null,null,null,null,null,null,null,null,null,null,null,"BRASIL"]
[63,"En qué país se promulgó la que es hoy la Constitución más antigua todavía en vigor","Estados Unidos","E","S","T","A","D","O","S",null,"U","N","I","D","O","S",null,null,null,null,"ESTADOSUNIDOS"]
[64,"Quién dijo que la justicia es un cachondeo","Pedro Pacheco","P","E","D","R","O",null,"P","A","C","H","E","C","O",null,null,null,null,null,"PEDROPACHECO"]
[65,"Dónde encontrarías la Ciudad Encantada","Cuenca","C","U","E","N","C","A",null,null,null,null,null,null,null,null,null,null,null,null,"CUENCA"]
[66,"Quién descubrió el primer antibiotico","Alexander Fleming","A","L","E","X","A","N","D","E","R",null,"F","L","E","M","I","N","G",null,{"$f":"CONCATENATE(D66,E66,F66,G66,H66,I66,J66,K66,L66,M66,N66,O66,P66,Q66,R66,S66,T66,U66)","v":"ALEXANDERFLEMING"}]
[67,"Quién descubrió la gravitación universal","Isaac Newton","I","S","A","A","C",null,"N","E","W","T","O","N",null,null,null,null,null,null,"ISAACNEWTON"]
[68,"Quién descubrió la penicilina","Alexander Fleming","A","L","E","X","A","N","D","E","R",null,"F","L","E","M","I","N","G",null,"ALEXANDERFLEMING"]
[69,"Quién descubrió la vacuna contra la rabia","Louis Pasteur","L","O","U","I","S",null,"P","A","S","T","E","U","R",null,null,null,null,null,"LOUISPASTEUR"]
[70,"quién inventó el alfabeto para ciegos","Louis Braille","L","O","U","I","S",null,"B","R","A","I","L","E",null,null,null,null,null,null,"LOUISBRAILE"]
[71,"quién inventó el autogiro","De la Cierva","D","E",null,"L","A",null,"C","I","E","R","V","A",null,null,null,null,null,null,"DELACIERVA"]
[72,"Quién inventó el automóvil","Teofilo Daimler","T","E","O","F","I","L","O",null,"D","A","I","M","L","E","R",null,null,null,"TEOFILODAIMLER"]
[73,"Quien inventó el barco a vapor","Robert Fulton","R","O","B","E","R","T",null,"F","U","L","T","O","N",null,null,null,null,null,"ROBERTFULTON"]
[74,"Quién inventó el dirigible","Zeppelin","Z","E","P","P","E","L","I","N",null,null,null,null,null,null,null,null,null,null,"ZEPPELIN"]
[75,"Quién inventó el lápiz","Staedtler","S","T","A","E","D","T","L","E","R",null,null,null,null,null,null,null,null,null,"STAEDTLER"]
[76,"¿Qué actor interpretó a Maximus Decimus Meridius, ganando un óscar por ello, en la película Gladiator de  Ridley Scott ?","Russell Crowe","R","U","S","S","E","L","L",null,"C","R","O","W","E",null,null,null,null,null,"RUSSELLCROWE"]
[77,"¿ Cuál fue la primera película en la que vimos a James Bond por primera vez ?","Doctor no","D","O","C","T","O","R",null,"N","O",null,null,null,null,null,null,null,null,null,"DOCTORNO"]
[78,"¿ A quién debemos el personaje inmortal de Michael Corleone en El Padrino ?","Al Pacino","A","L",null,"P","A","C","I","N","O",null,null,null,null,null,null,null,null,null,"ALPACINO"]
[79,"¿ Cuál era la profesión de Hannibal Lecter, el canibal asesino de El Silencio de los Corderos ?","Psiquiatra","P","S","I","Q","U","I","A","T","R","A",null,null,null,null,null,null,null,null,"PSIQUIATRA"]
[80,"¿ A lo alto de qué edificio se sube King Kong en la mítica escena final de la película ?","Empire State","E","P","I","R","E",null,"S","T","A","T","E",null,null,null,null,null,null,null,"EPIRESTATE"]
[81,"¿ Quién fue el único miembro de The Rolling Stones que acepto el título de sir ?","Mick Jagger","M","I","C","K",null,"J","A","G","G","E","R",null,null,null,null,null,null,null,"MICKJAGGER"]
[82,"A que marca de coche te subes si lo haces en un Cayman","Porsche","P","O","R","S","C","H","E",null,null,null,null,null,null,null,null,null,null,null,"PORSCHE"]
[83,"¿ Dónde se encuentra la ciudad de Monterrey ?","Mexico","M","E","X","I","C","O",null,null,null,null,null,null,null,null,null,null,null,null,"MEXICO"]
[84,"¿ Quién era el capitán cuando el Real Madrid ganó su primera Copa de Europa de fútbol ?","Miguel Muñoz","M","I","G","U","E","L",null,"M","U ","Ñ","O","Z",null,null,null,null,null,null,"MIGUELMU ÑOZ"]
[85,"¿ Cuál fue el primer equipo inglés que ganó un partido oficial en el Santiago Bernabeu ?","Arsenal","A","R","S","E","N","A","L",null,null,null,null,null,null,null,null,null,null,null,"ARSENAL"]
[86,"¿ Quién fue el decimosexto presidente de EE.UU. ?","Abraham Lincoln","A","B","R","A","H","A","M ",null,"L","I","N","C","O","L","N",null,null,null,"ABRAHAM LINCOLN"]
[87,"Lugar donde se posó el arca construida por Noé","Monte Ararat","M","O","N","T","E",null,"A","R","A","R","A","T",null,null,null,null,null,null,"MONTEARARAT"]
[88,"¿ Cuál es la lámpara del cuerpo ?","ojos","O","J","O","S",null,null,null,null,null,null,null,null,null,null,null,null,null,null,"OJOS"]
[89,"¿ Cómo se llama la bolsita en donde David guardó las cinco piedras ?","zurrón","Z","U","R","R","O","N",null,null,null,null,null,null,null,null,null,null,null,null,"ZURRON"]
[90,"Para medir la presión atmosférica se usa...","el barómetro","B","A","R","O","M","E","T","R","O",null,null,null,null,null,null,null,null,null,"BAROMETRO"]
[91,"¿ Dónde nació José Luis Zapatero ?","Valladolid","V","A","L","L","A","D","O","L","I","D",null,null,null,null,null,null,null,null,"VALLADOLID"]
[92,"¿ Quienes inventaron el cine ?","los hermanos Lumiere","H","E","R","M","A","N","O","S",null,"L","U","M","I","E","R","E",null,null,"HERMANOSLUMIERE"]
[93,"¿ Quienes inventaron nuestro sistema de numeración decimal ? los…","hindues","L","O","S",null,"H","I","N","D","U","E","S",null,null,null,null,null,null,null,"LOSHINDUES"]
[94,"¿ Quién patentó la dinamita ?","Alfred Nobel","A","L","F","R","E","D",null,"N","O","B","E","L",null,null,null,null,null,null,"ALFREDNOBEL"]
[95,"¿ Quién inventó la televisión ?","Baird ","B","A","I","R","D",null,null,null,null,null,null,null,null,null,null,null,null,null,"BAIRD"]
[96,"¿ Quién inventó la bombilla ?","Thomas Alva Edison","T","H","O","M","A","S",null,"A","L","V","A",null,"E","D","I ","S","O","N","THOMASALVAEDI SON"]
[97,"¿ Cómo se denomina la parte del músculo por donde se une el hueso ?","tendón","T","E","N","D","O","N",null,null,null,null,null,null,null,null,null,null,null,null,"TENDON"]
[98,"¿ Qué músculo sirven para mover el brazo hacia adelante ?","los pectorales","P","E","C","T","O","R","A","L","E","S",null,null,null,null,null,null,null,null,"PECTORALES"]
[99,"¿ Cuál es el hueso más largo del cuerpo ?","femur","F","E","M","U","R",null,null,null,null,null,null,null,null,null,null,null,null,null,"FEMUR"]
[100,"El canguro come hierba. ¿ Cómo se llaman los animales que comen hierba ?","herbívoros","H","E","R","B","I","V","O","R","O","S",null,null,null,null,null,null,null,null,"HERBIVOROS"]
[101,"Un bosque de pinos se llama...","pinar","P","I","N","A","R",null,null,null,null,null,null,null,null,null,null,null,null,null,"PINAR"]
[102,"¿ Qué células de la sangre defienden al organismo de las infecciones ?","los glóbulos blancos","G","L","O","B","U","L","O","S",null,"R","O","J","O","S",null,null,null,null,"GLOBULOSROJOS"]
[103,"¿ Qué partículas se mueven en una corriente eléctrica ?","los electrones","L","O","S",null,"E","L","E","C","T","R","O","N","E","S",null,null,null,null,"LOSELECTRONES"]
[104,"¿ Qué ciencia estudia los  fósiles ?","la paleontología","P","A","L","E","N","T","O","L","O","G","I","A",null,null,null,null,null,null,"PALENTOLOGIA"]
[105,"¿ Cómo se llaman los aparatos que producen corriente eléctrica ?","generadores","G","E","N","E","R","A","D","O","R","E","S",null,null,null,null,null,null,null,"GENERADORES"]
[106,"¿ Qué capa de la Tierra está a más temperatura ?","el núcleo","N","U","C","L","E","O",null,null,null,null,null,null,null,null,null,null,null,null,"NUCLEO"]
[107,"¿ Qué clase de carga eléctrica tiene un electrón ?","negativa","N","E","G","A","T","I","V","A",null,null,null,null,null,null,null,null,null,null,"NEGATIVA"]
[108,"¿ Cómo se llama la desviación de la luz al pasar de un medio a otro ?","refracción","R","E","F","R","A","C","C","I","O","N",null,null,null,null,null,null,null,null,"REFRACCION"]
[109,"¿ Qué aparato mide la cantidad de lluvia caída ?","el pluviometro","P","L","U","V","I","O","M","E","T","R","O",null,null,null,null,null,null,null,"PLUVIOMETRO"]
[110,"¿ Qué elemento químico predomina en la arena ?","el silicio","S","I","L","I","C","I","O",null,null,null,null,null,null,null,null,null,null,null,"SILICIO"]
[111,"¿ Qué nombre recibe el rocío cuando se congela ?","escarcha","E","S","C","A","R","C","H","A",null,null,null,null,null,null,null,null,null,null,"ESCARCHA"]
[112,"¿ de qué color es la clorofila ?","verde","V","E","R","D","E",null,null,null,null,null,null,null,null,null,null,null,null,null,"VERDE"]
[113,"Los animales que comen hierba ¿ se llaman...?","herbivoros","H","E","R","B","I","V","O","R","O","S",null,null,null,null,null,null,null,null,"HERBIVOROS"]
[114,"¿ Quién es la madre de tu madre ?","mi abuela","M","I",null,"A","B","U","E","L","A",null,null,null,null,null,null,null,null,null,"MIABUELA"]
[115,"¿ Cuántas patas tiene un lagarto ?","cuatro","C","U","A","T","R","O",null,null,null,null,null,null,null,null,null,null,null,null,"CUATRO"]
[116,"¿ Cuál es el nombre de las uvas secas ?","pasas","P","A","S","A","S",null,null,null,null,null,null,null,null,null,null,null,null,null,"PASAS"]
[117,"di el nombre del animal que cuando amanece canta en el corral","el gallo","E","L",null,"G","A","L","L","O",null,null,null,null,null,null,null,null,null,null,"ELGALLO"]
[118,"¿ Qué nombre recibe los conductos por los que sale la sangre del corazón ?","arterias","A","R","T","E","R","I","A","S",null,null,null,null,null,null,null,null,null,null,"ARTERIAS"]
[119,"¿ Qué día comienza el otoño ?","el 21 de septiembre",2,1,null,"S","E","P","T","I","E","M","B","R","E",null,null,null,null,null,"21SEPTIEMBRE"]
[120,"Al endurecimiento de las arterias le llamamos...","arteriosclerosis","A","R","T","E","R","I","O","S","C","L","E","R","O","S","I","S",null,null,"ARTERIOSCLEROSIS"]
[121,"¿ Qué forma el vapor de agua condensada por el frío de la noche ?","el rocio","R","O","C","I","O",null,null,null,null,null,null,null,null,null,null,null,null,null,"ROCIO"]
[122,"¿ Qué membrana separa el oído externo del interno ?","tímpano","T","I","M","P","A","N","O",null,null,null,null,null,null,null,null,null,null,null,"TIMPANO"]
[123,"¿ Qué conductos comunican los riñones con la vejiga de la orina ?","la uretra","U","R","E","T","R","A",null,null,null,null,null,null,null,null,null,null,null,null,"URETRA"]
[124,"¿ Cómo se llaman los animales que viven en  tierra y en el agua ?","anfibios","A","N","F","I","B","I","O","S",null,null,null,null,null,null,null,null,null,null,"ANFIBIOS"]
[125,"¿ Por dónde sale la leche de la vaca ?","por las ubres","U","B","R","E","S",null,null,null,null,null,null,null,null,null,null,null,null,null,"UBRES"]
[126,"¿ Quien es la madre del potro ?","la yegua","Y","E","G","U","A",null,null,null,null,null,null,null,null,null,null,null,null,null,"YEGUA"]
[127,"¿ Qué árbol lleva el escudo de Madrid ?","madroño","M","A","D","R","O","Ñ","O",null,null,null,null,null,null,null,null,null,null,null,"MADROÑO"]
[128,"¿ Cuál es la capital de Argentina ?","Buenos Aires","B","U","E","N","O","S",null,"A","I","R","E","S",null,null,null,null,null,null,"BUENOSAIRES"]
[129,"¿ Cuál es la capital de Austria ?","Viena","V","I","E","N","A",null,null,null,null,null,null,null,null,null,null,null,null,null,"VIENA"]
[130,"¿ Cuál es la capital de Bélgica ?","Bruselas","B","R","U","S","E","L","A","S",null,null,null,null,null,null,null,null,null,null,{"$f":"CONCATENATE(D130,E130,F130,G130,H130,I130,J130,K130,L130,M130,N130,O130,P130,Q130,R130,S130,T130,U130)","v":"BRUSELAS"}]
[131,"capital de Bulgaria","Sofia","S","O","F","I","A",null,null,null,null,null,null,null,null,null,null,null,null,null,"SOFIA"]
[132,"capital de Chile","Santiago de Chile","S","A","N","T","I","A","G","O",null,"D","E",null,"C","H","I","L","E",null,"SANTIAGODECHILE"]
[133,"capital de Ecuador","Quito","Q","U","I","T","O",null,null,null,null,null,null,null,null,null,null,null,null,null,"QUITO"]
[134,"capital de Holanda","Amsterdam","A","M","S","T","E","R","M","D","A","M",null,null,null,null,null,null,null,null,"AMSTERMDAM"]
[135,"Capital de Cuba","La Habana","L","A",null,"H","A","B","A","N","A",null,null,null,null,null,null,null,null,null,"LAHABANA"]
[136,"capital de China ","Pekin","P","E","K","I","N",null,null,null,null,null,null,null,null,null,null,null,null,null,"PEKIN"]
[137,"capital de Colombia ","Bogotá","B","O","G","O","T","A",null,null,null,null,null,null,null,null,null,null,null,null,"BOGOTA"]
[138,"Capital de Egipto ","El Cairo","E","L",null,"C","A","I","R","O",null,null,null,null,null,null,null,null,null,null,"ELCAIRO"]
[139,"Capital de Kenia","Nairobi","N","A","I","R","O","B","I",null,null,null,null,null,null,null,null,null,null,null,"NAIROBI"]
[140,"Capital de España ","Madrid","M","A","D","R","I","D",null,null,null,null,null,null,null,null,null,null,null,null,"MADRID"]
[141,"Capital de Francia","París","P","A","R","I","S",null,null,null,null,null,null,null,null,null,null,null,null,null,"PARIS"]
[142,"Capital de Grecia","Atenas","A","T","E","N","A","S",null,null,null,null,null,null,null,null,null,null,null,null,"ATENAS"]
[143,"Capital de la India  ","Nueva Delhi","N","U","E","V","A",null,"D","E","L","H","I",null,null,null,null,null,null,null,"NUEVADELHI"]
[144,"Capital de Indonesia","Yakarta","Y","A","K","A","R","T","A",null,null,null,null,null,null,null,null,null,null,null,"YAKARTA"]
[145,"Capital de Italia ","Roma","R","O","M","A",null,null,null,null,null,null,null,null,null,null,null,null,null,null,"ROMA"]
[146,"Capital de Jamaica","Kingston","K","I","N","G","S","T","O","N",null,null,null,null,null,null,null,null,null,null,"KINGSTON"]
[147,"Capital de Japón","Tokio","T","O","K","I","O",null,null,null,null,null,null,null,null,null,null,null,null,null,"TOKIO"]
[148,"Capital de Libano ","Beirut","B","E","I","R","U","T",null,null,null,null,null,null,null,null,null,null,null,null,"BEIRUT"]
[149,"Capital de Liberia ","Monrovia","M","O","N","R","O","V","I","A",null,null,null,null,null,null,null,null,null,null,"MONROVIA"]
[150,"Capital de Marruecos","Rabat","R","A","B","A","T",null,null,null,null,null,null,null,null,null,null,null,null,null,"RABAT"]
[151,"Capital de Polonia","Varsovia","V","A","R","S","O","V ","I","A",null,null,null,null,null,null,null,null,null,null,"VARSOV IA"]
[152,"Capital de Portugal","Lisboa","L","I","S","B","O","A",null,null,null,null,null,null,null,null,null,null,null,null,"LISBOA"]
[153,"Capital de Rusia","Moscú","M","O","S","C","U",null,null,null,null,null,null,null,null,null,null,null,null,null,"MOSCU"]
[154,"Capital de Suecia","Estocolmo","E","S","T","O","C","O","L","M","O",null,null,null,null,null,null,null,null,null,"ESTOCOLMO"]
[155,"Capital de Suiza"," Berna","B","E","R","N","A",null,null,null,null,null,null,null,null,null,null,null,null,null,"BERNA"]
[156,"Capital de Turquia ","Ankara","A","N","K","A","R","A",null,null,null,null,null,null,null,null,null,null,null,null,"ANKARA"]
[157,"Capital de Irlanda","Dublín","D","U","B","L","I","N",null,null,null,null,null,null,null,null,null,null,null,null,"DUBLIN"]
[158,"Capital Reino Unido Inglaterra","Londrés","L","O","N","D","R","E","S",null,null,null,null,null,null,null,null,null,null,null,"LONDRES"]
[159,"Capital de Escocia","Edimburgo","E","D","I","M","B","U","R","G","O",null,null,null,null,null,null,null,null,null,"EDIMBURGO"]
[160,"Capital de Noruega ","Oslo","O","S","L","O",null,null,null,null,null,null,null,null,null,null,null,null,null,null,"OSLO"]
[161,"Capital de Islandia  ","Reikiavik","R","E","I","K","I","A","V","I","K",null,null,null,null,null,null,null,null,null,"REIKIAVIK"]
[162,"Capital de Finlandia","Helsinki","H","E","L","S","I","N","K","I",null,null,null,null,null,null,null,null,null,null,"HELSINKI"]
[163,"Capital de Perú","Lima","L","I","M","A",null,null,null,null,null,null,null,null,null,null,null,null,null,null,"LIMA"]
[164,"Capital de Estados Unidos ","Washington","W","A","S","H","I","N","T","O","N",null,null,null,null,null,null,null,null,null,"WASHINTON"]
[165,"Capital de Luxemburgo","Luxemburgo","L","U","X","E","M","B","U","R","G","O",null,null,null,null,null,null,null,null,"LUXEMBURGO"]
[166,"Capital de Dinamarca ","Copenhague","C","O","P","E","N","H","A","G","U","E",null,null,null,null,null,null,null,null,"COPENHAGUE"]
[167,"Capital de Estonia ","Tallin","T","A","L","L","I","N",null,null,null,null,null,null,null,null,null,null,null,null,"TALLIN"]
[168,"Capital de Letonia","Riga","R","I","G","A",null,null,null,null,null,null,null,null,null,null,null,null,null,null,"RIGA"]
[169,"Capital de Lituania ","Vilna","V","I","L","N","A",null,null,null,null,null,null,null,null,null,null,null,null,null,"VILNA"]
[170,"Capital de Bielorrusia","Minsk","M","I","N","S","K",null,null,null,null,null,null,null,null,null,null,null,null,null,"MINSK"]
[171,"Capital de Ucrania","Kiev","K","I","E","V",null,null,null,null,null,null,null,null,null,null,null,null,null,null,"KIEV"]
[172,"Capital de Moldavia","Chisinau","C","H","I","S","I","N","A","U",null,null,null,null,null,null,null,null,null,null,"CHISINAU"]
[173,"Capital de Rumania ","Bucarest","B","U","C","A","R","E","S","T",null,null,null,null,null,null,null,null,null,null,"BUCAREST"]
[174,"Capital de  Albania","Tirana","T","I","R","A","N","A",null,null,null,null,null,null,null,null,null,null,null,null,"TIRANA"]
[175,"Capital de Macedonia","Skopje","S","K","O","P","J","E",null,null,null,null,null,null,null,null,null,null,null,null,"SKOPJE"]
[176,"¿ En qué abultamiento del sistema linfático se acumulan sustancias nocivas ?","en los ganglios","G","A","N","G","L","I","O","S",null,null,null,null,null,null,null,null,null,null,"GANGLIOS"]
[177,"¿ Dónde se produce la voz humana ?","en las cuerdas vocales ","C","U","E","R","D","A","S",null,"V","O","C","A","L","E","S",null,null,null,"CUERDASVOCALES"]
[178,"¿ Qué día comienza el verano ?","el 21 de junio",2,1,null,"D","E",null,"J","U","N","I","O",null,null,null,null,null,null,null,"21DEJUNIO"]
[179,"¿ Quién demostró que las sustancias orgánicas se descomponen debido a los microorganismos ?","Louis Pasteur","L","O","U","I","S",null,"P","A","S","T","E","U","R"]
[180,"¿ Que son en agricultura, trigo, avena y maíz ?","Cereales","C","E","R","E","A","L","E","S"]
[181,"El ruido perjudica al sistema auditivo y al...","nervioso","N","E","R","V","I","O","S","O"]
[182,"Nosotros respiramos a través de los pulmones, los peces respiran por...","las branquias","B","R","A","N","Q","U","I","A","S"]
[183,"La mariposa, antes de serlo es una… ?","oruga","O","R","U","G","A"]
[184,"¿ De qué animal se obtienen las chuletas ?","del cordero","C","O","R","D","E","R","O"]
[185,"Las plantas beben agua del suelo a través de las...","las raices","R","A","I","C","E","S"]
[186,"¿ Cómo llamamos a los conductos que unen las arterias y las venas ?","capilares","C","A","P","I","L","A","R","E","S"]
[187,"¿ La lupa es una lente convergente o divergente ?","convergente","C","O","N","V","E","R","G","E","N","T","E"]
[188,"Por dónde llega la comida al estómago ?","por el esófago","E","S","O ","F","A","G","O"]
[189,"¿ Para qué sirve un dinamómetro ?","para medir las fuerzas","M","E","D","I","R",null,"L","A","S",null,"F","U","E","R","Z","A","S"]
[190,"¿ Contra quén jugó España en la final del Mundial de futbol del 2010 ?","Holanda","H","O","L","A","N","D","A"]
[191,"¿ Cuál fue el resultado de España contra Holanda en la final de futbol del 2010 ?","1-0 a favor de España",1,null,"O"]
[192,"¿ Cómo se llaman las plantas que tienen flores ?","fanerógamas","F","A","N","E","R","O","G","A","M","A","S"]
[193,"¿ Las truchas viven en el mar o en los rios ?","en los rios","R","I","O","S"]
[194,"¿ Qué se produce al pasar el aire por las cuerdas vocales ?","la voz","L","A",null,"V","O","Z"]
[195,"¿ A través de que conducto llega el aire a los pulmones ?","tráquea","T","R","A","Q","U","E","A"]
[196,"El carbón es una roca. ¿ De qué origen ?","vegetal","V","E","G","E","T","A","L"]
[197,"¿ A qué aparato pertenece el corazón ?","circulatorio","C","I","R","C","U","L","A","T","O","R","I","O"]
[198,"¿ Cómo se denomina un suelo que no es fértil ?","arido o estéril","A","R","I","D","O",null,"E","S","T","E","R","I","L"]
[199,"¿ Cuántos cromosomas tiene la especie humana ?",46,4,6]
[200,"¿ Cómo se llama la célula reproductora masculina de una flor ?","polen","P","O","L","E","N"]
[201,"¿ Cuántas eras se contabilizan en la historia de la Tierra ?",5,5]
[202,"¿ Qué estación del año va después del otoño ?","invierno","I","N","V","I","E","R","N","O"]
[203,"¿ Cómo se llama la parte que une la cabeza con el tronco ?","cuello","C","U","E","L","L","O"]
[204,"Los padres de tu madre son tus...","abuelos","A","B","U","E","L","O","S"]
[205,"¿ Qué otro nombre reciben las grasas ?","lipidos","L","I","P","I","D","O","S"]
[206,"¿ En que glándula se fabrica la hormona del crecimiento ?","en la hipófisis","H","I","P","O","F","I","S","I","S"]
[207,"¿ Cómo se llaman los científicos que estudian los astros ?","astrónomos","A","S","T","R","O","N","O","M","O","S"]
[208,"¿ Cuál es la capa más interna de la Tierra ?","el núcleo","N","U","C","L","E","O"]
[209,"¿ Qué ciencia estudia los fenómenos atmosféricos ?","la metereología","M","E","T","E","R","E","O","L","O","G","I","A"]
[210,"¿ Qué tipo de microorganismo produce la gripe ?","un virus","V","I","R","U","S"]
[211,"¿ Cuáles son las siglas del ácido desoxirribonucleico ?","ADN","A","D","N"]
[212,"¿ Qué magnitud se ahorra con el uso de una máquina ?","la fuerza","F","U","E","R","Z","A"]
[213,"¿ Qué nombre reciben las reacciones químicas que desprenden calor ?","exotérmicas","E","X","O","T","E","R","M","I","C","A","S"]
[214,"¿ Qué huesos protegen la médula espinal ?","las vertebras","V","E","R","T","E","B","R","A","S"]
[215,"«sobrenombre del pintor y escultor Jacobo Florentino , discípulo de Miguel Angel , con quien colaboró en la Capilla Sixtina?","el indaro","I","N","D","A","R","O"]
[216,"Que escultura de Chillida puede hallarse en las costas donostiarras","Peine al viento","P","E","I","N","E",null,"A","L",null,"V","I","E","N","T","O"]
[217,"¿que cordobes pinto a la \"mujer morena\"?","el greco","G","R","E","C","O"]
[218,"quien cantaba \"al alba\"","Luis Eduardo Aute","L","U","I","S",null,"E","D","U","A","R","D","O",null,"A","U","T","E"]
[219,"¿De que actor se decía que no tenía un pelo de tonto?","Yul Bryner","Y","U","L",null,"B","R","Y","N","E","R"]
[220,"¿Quien es la famosa hija de Tippi Hedren?","Melanie Griffith","M","E","L","A","N","I","E",null,"G","R","I","F","F","I","T","H"]
[221,"Que tenista alcanzó por vez primera y de forma oficial el número uno en el ranking atp de tenis","Carles Moya","C","A","R","L","E","S",null,"M","O","Y","A"]
[222,"¿cada cuantos años se celebran los juegos olímpicos?","cuatro","C","U","A","T","R","O"]
[223,"como se llamaba a Luis Aragones en su epoca de jugador","sabio (el sabio de Hortaleza)","S","A","B","I","O"]
[224,"cuál es el jugador con más copas de Europa ?","gento","G","E","N","T","O"]
[225,"que club ha sido nombrado mejor club de la historia por la fifa","Real Madrid","R","E","A","L",null,"M","A","D","R","I","D"]
[226,"¿Como se llama a la cantidad de sidra que se echa en un vaso?","culin","C","U","L","I","N"]
[227,"¿Como se llama la peculiar forma de echar la sidra en el vaso ?","escanciar","E","S","C","A","N","C","I","A","R"]
[228,"¿cuál es el vegetal más antiguo conocido?","guisante","G","U","I","S","A","N","T","E"]
[229,"a la costilla asada también se le llama...","churrasco","C","H","U","R","R","A","S","C","O"]
[230,"¿De qué país procede la pasta?","China","C","H","I","N","A"]
[231,"¿Quien fue el primer rey de toda España?","el rey Pelayo","P","E","L","A","Y","O"]
[232,"¿ como se denominan a los que hacen guardia en un palacio con una lanza?","alabarderos","A","L","A","B","A","R","D","E","R","O","S"]
[233,"como se llamaban los acompañantes del conductor de un carruaje?","palafreneros","P","A","L","A","F","R","E","N","E","R","O","S"]
[234,"Cual fue el primer español en conseguir el balón de oro","Luis Suarez","L","U","I","S",null,"S","U","A","R","E","Z"]
[235,"Quien dijo en 1897 que la radio no tenía futuro","Lord Kelvin","L","O","R","D",null,"K","E","L","V","I","N"]
[236,"¿Con qué sobrenombre era conocido Erwin Rommel?","el zorro del desierto","Z","O","R","R","O",null,"D","E","L",null,"D","E","S","I","E","R","T","O"]
[237,"¿Qué general norteamericano creía ser la reencarnación de un soldado cartaginés?","George Patton","G","E","O","R","G","E",null,"P","A","T","T","O","N"]
[238,"¿quien dirigió a los beatles en \"HELP\"?","Richard Lester","R","I","C","H","A","R","D",null,"L","E","S","T","E","R"]
[239,"John Lennon, Paul McCartney, George Harrison y ?","Ringo Star","R","I","N","G","O",null,"S","T","A","R"]
[240,"quien era según la mitología clásica el dios romano del amor","Cupido","C","U","P","I","D","O"]
[241,"en Egipto, el rey de los dioses","Amon","A","M","O","N"]
[242,"¿ Cómo se llama la semana más famosa de Gijón ?","semana negra","S","E","M","A","N","A",null,"N","E","G","R","A"]
[243,"¿Con que nombre se conoce a la bandera de los Estados Unidos?","stars and stripes","S","T","A","R","S",null,"A","N","D",null,"S","T","R","I","P","E","S"]
[244,"¿De qué nacionalidad era el inventor de la fregona?","español","E","S","P","A","Ñ","O","L"]
[245,"gorro típico asturiano","montera picona","M","O","N","T","E","R","A",null,"P","I","C","O","N","A"]
[246,"enfermedad causada por un parásito que se aloja en forma capsulada en la musculatura del cerdo y otros animales","triquinosis","T","R","I","Q","U","I","N","O","S","I","S"]
[247,"¿ qué es una estenocardia ?","angina de pecho","A","N","G","I","N","A",null,"D","E",null,"P","E","C","H","O"]
[248,"costura quirurgica","sutura","S","U","T","U","R","A"]
[249,"Dificultad respiratoria como consecuencia de la insuficiente oxigenación de la sangre","disnea","D","I","S","N","E","A"]
[250,"en qué provincia española nació Federico García Lorca? ( Fuente Vaqueros)","Granada","G","R","A","N","A","D","A"]
[251,"fecha del nacimiento de Lorca","5 junio 1898",5,null,"J","U","N","I","O",null,1,8,9,8]
[252,"¿A qué tipo de archivo corresponde la extensión TXT?","texto","T","E","X","T","O"]
[253,"Qué voz inglesa designa la palabra que permite el acceso a un sistema informático","password","P","A","S","S","W","O","R","D"]
[254,"cual es la operacion que te resuelve todos los problemas en MS-DOS","format","F","O","R","M","A","T"]
[255,"término usado para denominar a un pirata informático","hacker","H","A","C","K","E","R"]
[256,"¿ Como se llama un fichero que ha sido corrupto por alguien con fines destructivos o simplemente ludicos?","troyano","T","R","O","Y","A","N","O"]
[257,"quien ha sido la única reina en España a partir de los reyes catolicos","Isabel II","I","S","A","B","E","L",null,"I","I"]
[258,"¿en que año se fundó el partido socialista obrero español",1879,1,8,7,9]
[259,"¿en que año tuvo lugar el primer congreso catalanista en barcelona?",1879,1,8,7,9]
[260,"En que año fue la revolución francesa",1789,1,7,8,9]
[261,"en que año se fundaron los carabinieri",1919,1,9,1,2]
[262,"¿En que comunidad autónoma se habla el bable ?","Asturias","A","S","T","U","R","I","A","S"]
[263,"¿en que país sudamericano existe una ciudad llamada Barcelona?","Venezuela","V","E","N","E","Z","U","E","L","A"]
[264,"¿como se llamaba Nueva York cuando era protectorado Holandés?","Nueva Amsterdam","N","U","E","V","A",null,"A","M","S","T","E","R","D","A","M"]
[265,"que río pasa por Bilbao? ","Nervion","N","E","R","V","I","O","N"]
[266,"que río pasa por Toledo?","Tajo","T","A","J","O"]
[267,"Plato típico de Asturias","fabada","F","A","B","A","D","A"]
[268,"¿cuál es el tubérculo más conocido?","patata","P","A","T","A","T","A"]
[269,"¿Cual es el principal componente del vidrio?","silicio","S","I","L","I","C","I","O"]
[270,"¿cómo se llama la ciencia que estudia los pájaros?","ornitologia","O","R","N","I","T","O","L","O","G","I","A"]
[271,"cual es el cometa mas famoso descubierto en 1682","halley","H","A","L","L","E","Y"]
[272,"¿Qué animal aparece en las cajetillas de Camel ?","dromedario","D","R","O","M","E","D","A","R","I","O"]
[273,"planta perenne de ramos leñosos","arbusto","A","R","B","U","S","T","O"]
[274,"plantas papilonaceas de semillas muy nutritivas","lentejas","L","E","N","T","E","J","A"]
[275,"¿qué animal se supone que tiene una asombrosa memoria?","elefante","E","L","E","F","A","N","T","E"]
[276,"qué da lugar la descarga eléctrica producida entre dos nubes?","relámpago","R","E","L","A","M","P","A","G","O"]
[277,"qué tipo de aves asociarias al azor?","rapaces","R","A","P","A","C","E","S"]
[278,"quien cantaba \"fruta fresca\"","Carlos Vives","C","A","R","L","O","S",null,"V","I","V","E","S"]
[279,"en que se suele medir la intensidad eléctrica","amperios","A","M","P","E","R","I","O","S"]
[280,"¿ Quien escribió el guión de la película de la postguerra española  \"Raza\" ?","Francisco Franco","F","R","A","N","C","I","S","C","O",null,"F","R","A","N","C","O"]
[281,"dirigida por Charles Chaplin. famosa escena en la que chaplin se come un zapato","la quimera del oro","L","A",null,"Q","U","I","M","E","R","A",null,"D","E","L",null,"O","R","O"]
[282,"¿Como se llamaban los caseros de la serie \" un hombre en casa \" George y Mildred","George y Mildred Roper","L","O","S",null,"R","O","P","E","R"]
[283,"¿Cual fue la parodia mas famosa de Martes y Trece ? Encarna y las….","Encarna y las empanadillas","E","M","P","A","N","A","D","I","L","L","A","S"]
[284,"¿En qué posición jugaba Michael Robinson?","delantero centro","D","E","L","A","N","T","E","R","O",null,"C","E","N","T","R","O"]
[285,"Además de Indurain y Delgado, ¿qué españoles han ganado el Tour?","Ocaña y Bahamontes","O","C","A","Ñ","A",null,"B","A","H","A","M","O","N","T","E","S"]
[286,"Que jugador del FCB Barcelona fue secuestrado ?","Quini","Q","U","I","N","I"]
[287,"¿qué famoso cuadro fue encargado para el pabellón español de la exposición universal de París de 1937?","Guernica","G","U","E","R","N","I","C","A"]
[288,"¿quién pintó \"la sagrada familia del pajarito\"?","Murillo","M","U","R","I","L","L","O"]
[289,"a que tipo de aves asociarias la lechuza?","rapaces","R","A","P","A","C","E","S"]
[290,"como se denomina el órgano femenino de la flor?","pistilo","P","I","S","T","I","L","O"]
[291,"como se llama el gas muy explosivo que se produce en las minas?","grisu","G","R","I","S","U"]
[292,"como se llama el instrumento que imita el canto de las aves?","reclamo","R","E","C","L","A","M","O"]
[293,"como se llama el toro de 2 años a tres años de edad?","novillo","N","O","V","I","L","L","O"]
[294,"como se llama la cria de la mula?","es esteril","E","S",null,"E","S","T","E","R","I","L"]
[295,"como se llama la cria del aguila?","aguilucho","A","G","U","I","L","U","C","H","O"]
[296,"como se llama la parte posterior del pie?","tarso","T","A","R","S","O"]
[297,"Quien iba a cantar originariamente el La,La,La y se negó porque no le dejaban en catalán","Joan Manuel Serrat","J","O","A","N",null,"M","A","N","U","E","L",null,"S","E","R","R","A","T"]
[298,"Quien cantaba aquello de Black is Black","Los Bravos","L","O","S",null,"B","R","A","V","O","S"]
[299,"número de planetas del sistema solar","nueve","N","U","E","V","E"]
[300,"cuantos segundos componen una hora","tres mil seiscientos",3,6,"O","O"]
[301,"resultado de   11 - 3 x 8 + 12",76,7,6]
[302,"el número 0 lo introdujo, en la cultura occidental la civilización...","musulmana","M","U","S","U","L","M","A","N","A"]
[303,"como se llaman las orugas de los pinos","procesionarias","P","R","O","C","E","S","I","O","N","A","R","I","A"]
[304,"Quien pintó La  \"última cena \"","Leonardo da Vinci","L","E","O","N","A","R","D","O",null,"D","A",null,"V","I","N","C","I"]
[305,"¿ Quién pintó el cuadro La carga de los mamelucos ?","Goya","G","O","Y","A"]
[306,"nombre vulgar de la medula osea","tuetano","T","U","E","T","A","N","O"]
[307,"como emigran las langostas? En….","en fila india","F","I","L","A",null,"I","N","D","I","A"]
[308,"Qué es una beluga? Una …","ballena","B","A","L","L","E","N","A"]
[309,"¿ Cómo se llama a los caballos de color castaño oscuro ?","albazano","A","L","B","A","Z","A","N","O"]
[310,"Cómo se llama comúnmente el fruto del roble y la encina","bellota","B","E","L","L","O","T","A"]
[311,"cómo se llama la falange segunda de los dedos","falangina","F","A","L","A","N","G","I","N","A"]
[312,"Quién fue el primer hombre que ideó una máquina voladora?","Leonardo da Vinci","L","E","O","N","A","R","D","O",null,"D","A",null,"V","I","N","C","I"]
[313,"a quién se le considera padre del psicoanalisis?","Sigmund Freud","S","I","G","M","U","N","D",null,"F","R","E","U","D"]
[314,"cómo se denomina la aleación del cobre con el cinc?","latón","L","A","T","O","N"]
[315,"cómo se llama la autofecundación de las plantas?","endogamia","E","N","D","O","G","A","M","I","A"]
[316,"cómo se llama la ciencia que estúdia los fósiles?","paleontologia","P","A","L","E","O","N","T","O","L","O","G","I","A"]
[317,"cómo se llama la cria de gusano de seda?","sericultura","S","E","R","I","C","U","L","T","U","R","A"]
[318,"cómo se llaman los animales que tienen los dos sexos en si mismos?","hermafroditas","H","E","R","M","A","F","R","O","D","I","T","A","S"]
[319,"dirigida por Carlos Saura. sútil metáfora de la guerra civil española","la caza","L","A",null,"C","A","Z","A"]
[320,"dirigida por David Lean. bélica. famosa por su canción silbada. El puente sobre….","el puente sobre el rio Kwai","E","L",null,"R","I","O",null,"K","W","A","I"]
[321,"con cuantas tarjetas amarillas se expulsa a un jugador de futbol en un partido? Con…","con dos",2]
[322,"con qué nombre se designa el levantamiento de pesas ?","halterofilia","H","A","L","T","E","R","O","F","I","L","I","A"]
[323,"cuál es el circuito automovilístico considerado como el mas difícil del mundo?","Monaco","M","O","N","A","C","O"]
[324,"cuál es la duración de un asalto en el boxeo profesional ? minutos….","tres minutos",3]
[325,"de qué color son las piezas que mueven primero en ajedrez ?","blanco","B","L","A","N","C","A","S"]
[326,"¿a que se refiere la cuenta 631 del plan general contable?","tributos e impuestos","T","R","I","B","U","T","O","S",null,"I","M","P","U","E","S","T","O","S"]
[327,"¿como se denomina la cantidad entregada como garantía del cumplimiento de un contrato?","fianza","F","I","A","N","Z","A"]
[328,"¿cual es la cuenta 629 del plan general contable?","otros servicios","O","T","R","O","S",null,"S","E","R","V","I","C","I","O","S"]
[329,"hidrocarburo saturado usado como combustible","propano","P","R","O","P","A","N","O"]
[330,"¿qué elemento causa el robín ( oxido )?","oxígeno","O","X","I","G","E","N","O"]
[331,"¿quien descubrió la naturaleza eléctrica del relámpago ?","Benjamin Franklin","B","E","N","J","A","M","I","N",null,"F","R","A","N","K","L","I","N"]
[332,"A quién querían en 1979 los estudiantes iraníes a cambio de los rehenes estadounidenses","Sha de Persia","S","H","A",null,"D","E",null,"P","E","R","S","I","A"]
[333,"Contra qué presidente del Gobierno español iba dirigida la \"operación Galaxia\"","Adolfo Suarez","A","D","O","L","F","O",null,"S","U","A","R","E","Z"]
[334,"Cuál fue la máxima graduación militar que consiguió Felipe González durante su servicio militar ?","alferez","A","L","F","E","R","E","Z"]
[335,"Cuál fue la persona más célebre que al final de sus días fue atendida por el doctor Pozuelo?","Francisco Franco","F","R","A","N","C","I","S","C","O",null,"F","R","A","N","C","O"]
[336,"ex-primer ministro italiano asesinado en mayo de 1978","Aldo Moro","A","L","D","O",null,"M","O","R","O"]
[337,"hermanas de los chunguitos","azucar moreno","A","Z","U","C","A","R",null,"M","O","R","E","N","O"]
[338,"interpretó a María Magdalena en la version española de Jesucristo Superstar","Angela Carrasco","A","N","G","E","L","A",null,"C","A","R","R","A","S","C","O"]
[339,"¿Cuántas plagas mandó Dios sobre Egipto?","diez","D","I","E","Z"]
[340,"¿Cuántos años vivió Adán?",930,9,3,"O"]
[341,"¿De qué mar separó Moisés las aguas para poder pasar con su pueblo perseguido por los egipcios?","mar rojo","M","A","R",null,"R","O","J","O"]
[342,"¿Dónde le dio Dios a Moisés las tablas de la ley ?","Monte Sinai","M","O","N","T","E",null,"S","I","N","A","I"]
[343,"¿Dónde murió Jesús?","Jerusalen","J","E","R","U","S","A","L","E","N"]
[344,"que glándula segrega la insulina, el…","pancreas","P","A","N","C","R","E","A","S"]
[345,"¿ Dónde nació el Rey Juan Carlos I de España ?","Roma, Italia ","I","T","A","L","I","A"]
[346,"Dícese del hombre que no tiene barba","lampiño","L","A","M","P","I","Ñ","O"]
[347,"cria de la vaca","becerro","B","E","C","E","R","R","O"]
[348,"objeto al que se le atribuye poder sobrenatural","talisman","T","A","L","I","S","M","A","N"]
[349,"¿en qué año se inició la gran depresión ?","1929 y a partir de 2008 con Zapatero",1,9,2,9]
[350,"¿quien dirigia gran bretaña durante la segunda guerra mundial?","Winston Churchill","W","I","N","S","T","O","N",null,"C","H","U","R","C","H","I","L","L"]
[351,"¿con qué objetivo construyeron los antiguos egipcios las piramides? como…","tumbas para los faraones","T","U","M","B","A","S"]
[352,"¿quién disparo a John F. Kennedy ?","Lee Harvey Oswald","L","E","E",null,"H","A","R","V","E","Y",null,"O","S","W","A","L","D"]
[353,"¿quién fue el primer presidente de los Estados Unidos ?","George Washington","G","E","O","R","G","E",null,"W","A","S","H","I","N","T","O","N"]
[354,"¿en qué año se firmó el tratado de Versalles ?",1919,1,9,1,9]
[355,"¿en qué año se inauguró el Canal de Suéz ?",1868,1,8,6,8]
[356,"¿Cómo se llamaba el bombardero que lanzó la primera bomba atómica?","Enola Gay","E","N","O","L","A",null,"G","A","Y"]
[357,"Era hija de los reyes Católicos, y contrajo matrimonio con el Archiduque Felipe el Hermoso","Juana la Loca","J","U","A","N","A",null,"L","A",null,"L","O","C","A"]
[358,"Quién aparece en el billete de 5000 ptas de los años 1930","Cristobal Colon","C","R","I","S","T","O","B","A","L",null,"C","O","L","O","N"]
[359,"Qué nombre reciben los aviadores que estrellaban su propio avión contra objetivos militares enemigos?","kamikaces","K","A","M","I","K","A","C","E","S"]
[360,"qué canal fue cerrado a la navegacion a raiz de la guerra de los seis días y se reabrió en 1975","Canal de Suez","C","A","N","A","L",null,"D","E",null,"S","U","E","Z"]
[361,"Cuántos años duró la guerra de Corea?","tres","T","R","E","S"]
[362,"¿cuál es la ciudad de la luz?","París","P","A","R","I","S"]
[363,"¿cuál es la ciudad más grande de Australia?","Sidney","S","I","D","N","E","Y"]
[364,"Dónde se celebra la maratón popular más importante del mundo","Nueva York","N","U","E","V","A",null,"Y","O","R","K"]
[365,"en qué deporte destacó Ricardo Tormo ?","motociclismo","M","O","T","O","C","I","C","L","I","S","M","O"]
[366,"en que país asiatico se originó el parchis ?","India","I","N","D","I","A"]
[367,"en que país europeo se inventó el dominó ?","Francia","F","R","A","N","C","I","A"]
[368,"cómo se llaman los puntos de unión de los huesos ?","articulaciones","A","R","T","I","C","U","L","A","C","I","O","N","E","S"]
[369,"cuál es el cereal de mayor producción del planeta ?","trigo","T","R","I","G","O"]
[370,"cuál es el número neutro en la escala de PH ?","siete","S","I","E","T","E"]
[371,"cuál es el termino médico que designa el cancer de sangre ?","leucemia","L","E","U","C","E","M","I","A"]
[372,"cuál es la vena mas grande del cuerpo humano ? La vena…","vena cava","C","A","V","A"]
[373,"cuántos grados tiene media circunferencia?",180,1,8,"O"]
[374,"de qué esta formado el esqueleto del tiburón?","cartilagos","C","A","R","T","I","L","A","G","O","S"]
[375,"de qué planta se extrae el ron ?","caña de azúcar","C","A","Ñ","A",null,"D","E",null,"A","Z","U","C","A","R"]
[376,"que ácido se encuentra fundamentalmente en naranjas y limones ?","ácido citrico","A","C","I","D","O",null,"C","I","T","R","I","C","O"]
[377,"qué enfermedad produce la falta de vitamina C ?","escorbuto","E","S","C","O","R","B","U","T","O"]
[378,"qué es lo opuesto a concavo ?","convexo","C","O","N","V","E","X","O"]
[379,"qué famoso bacteriologo descubrió el suero antirrabico ?","Louis Pasteur","L","O","U","I","S",null,"P","A","S","T","E","U","R"]
[380,"qué hormona segrega el páncreas ?","insulina","I","N","S","U","L","I","N","A"]
[381,"qué instrumento de medición inventó Torricelli ?","barómetro","B","A","R","O","M","E","T","R","O"]
[382,"qué metal es el mejor conductor del calor y la electricidad ?","plata","P","L","A","T","A"]
[383,"quien murió con más de mil patentes en su haber ?","Thomas Edison","T","H","O","M","A","S",null,"E","D","I","S","O","N"]
[384,"¿ cuál es el hidrato de carbono más común en la patata ?","almidón","A","L","M","I","D","O","N"]
[385,"dirigida por Luis García Berlanga. José Isbert desempeña un oficio con pocos amigos","el verdugo","E","L",null,"V","E","R","D","U","G","O"]
[386,"como fue llamado Charlie Chaplin","charlot","C","H","A","R","L","O","T"]
[387,"Quién era El estudiante de Curro Jiménez?","Pepe Sancho","P","E","P","E",null,"S","A","N","C","H","O"]
[388,"Quién presentaba La Clave ?","José Luis Balbin","J","O","S","E",null,"L","U","I","S",null,"B","A","L","B","I","N"]
[389,"presentaba cantares desde el Corral de la Pacheca","Lauren Postigo","L","A","U","R","E","N",null,"P","O","S","T","I","G","O"]
[390,"presentador de lluvia de estrellas","Bertin Osborne","B","E","R","T","I","N",null,"O","S","B","O","R","N","E"]
[391,"programa infantil presentado por Alaska","bola de cristal","B","O","L","A",null,"D","E",null,"C","R","I","S","T","A","L"]
[392,"quién presentó el único festival de eurovisión celebrado en España","Laura Valenzuela","L","A","U","R","A",null,"V","A","L","E","N","Z","U","E","L","A"]
[393,"A quién mató el toro Islero","Manolete","M","A","N","O","L","E","T","E"]
[394,"¿ Cómo se llamaba el toro que mató a Manolete ?","Islero","I","S","L","E","R","O"]
[395,"Cómo se llamaba el personaje conocido como El Santo?","Simon Templar","S","I","M","O","N",null,"T","E","M","P","L","A","R"]
[396,"De qué país descienden los Kennedy?","Irlanda","I","R","L","A","N","D","A"]
[397,"¿Con qué técnica está pintado el Guernica ?","oleo","O","L","E","O"]
[398,"¿Cuál fue el arquitecto de \"La Pedrera\"?","Antonio Gaudi","A","N","T","O","N","I","O",null,"G","A","U","D","I"]
[399,"¿ Qué elemento decorativo iluminaba de colores las catedrales goticas ?","vidrieras","V","I","D","R","I","E","R","A","S"]
[400,"¿Qué técnica pictórica utiliza el huevo como aglutinante?","temple","T","E","M","P","L","E"]
[401,"El arco de herradura es característico de la arquitectura...","arabe","A","R","A","B","E"]
[402,"cuántas patas tiene un piojo ?","seis","S","E","I","S"]
[403,"¿ cuántas vertebras lumbares tiene el cuerpo humano ?","cinco","C","I","N","C","O"]
[404,"cuántos tentáculos tiene el calamar ?","diez","D","I","E","Z"]
[405,"de qué  otra forma se le llaman a los tendones ?","ligamentos","L","I","G","A","M","E","N","T","O","S"]
[406,"de qué animal mamifero se hacen pinceles y brochas con su pelo ?","tejon","T","E","J","O","N"]
[407,"de qué fruta se obtiene la sidra ?","manzana","M","A","N","Z","A","N","A"]
[408,"de qué ventrículo parte la arteria aorta ?","izquierdo","I","Z","Q","U","I","E","R","D","O"]
[409,"dónde está contenida la fruta del guisante ? en la...","vaina","V","A","I","N","A"]
[410,"el té, es árbol, arbusto o matorral?","arbusto","A","R","B","U","S","T","O"]
[411,"en qué dos continentes vive la gacela ?","Africa y Asia","A","F","R","I","C","A",null,"A","S","I","A"]
[412,"quién le hizo una canción a la bilirrubina ?","Juan Luis Guerra","J","U","A","N",null,"L","U","I","S",null,"G","U","E","R","R","A"]
[413,"nombre del inventor de la máquina de escribir?","Wlliam Qwerty","W","I","L","L","I","A","M",null,"Q","W","E","R","T","Y"]
[414,"Qué significan las siglas TNT?","trinitrotolueno","T","R","I","N","I","T","R","O","T","O","L","U","E","N","O"]
[415,"con qué palabra se designa a la supresion del dolor ?","analgesia","A","N","A","L","G","E","S","I","A"]
[416,"cuál es el órgano sensorial mas desarrollado en un bebe ?","boca","B","O","C","A"]
[417,"cuál es la fruta de la que se extrae el cava?","uva","U","V","A"]
[418,"protagonista femenina de lluvia en los zapatos","Penelope Cruz","P","E","N","E","L","O","P","E",null,"C","R","U","Z"]
[419,"Con qué nombre fue más conocido el payaso José Andreu Lasarre?","Charlie Rivel","C","H","A","R","L","I","E",null,"R","I","V","E","L"]
[420,"En qué ciudad nació Isabel Pantoja?","Sevilla","S","E","V","I","L","L","A"]
[421,"Qué ciudad fue sede de los primeros Juegos Olímpicos modernos ?","Atenas","A","T","E","N","A","S"]
[422,"cuánto dinero en pesetas le costó al Real Madrid fichar a Distefano","cinco millones","C","I","N","C","O",null,"M","I","L","L","O","N","E","S"]
[423,"Quien marcó el último gol del partido España-Malta (12-1)","Juan Señor","J","U","A","N",null,"S","E","Ñ","O","R"]
[424,"en el siglo XVIII, que país era el primer productor de acero","Gran Bretaña","G","R","A","N",null,"B","R","E","T","A","Ñ","A"]
[425,"La diferencia entre activo y pasivo recibe el nombre de..","Neto","N","E","T","O"]
[426,"la especialidad de la isla de Murano, cerca de Venecia, es la... ?","cristalería","C","R","I","S","T","A","L","E","R","I","A"]
[427,"moneda de la ciudad del Vaticano","lira vaticana","L","I","R","A",null,"V","A","T","I","C","A","N","A"]
[428,"año del crack bursatil?",1929,1,9,2,9]
[429,"Sistema electrónico que deja pasar la corriente sólo en un sentido","diodo","D","I","O","D","O"]
[430,"¿ Qué embutido es muy conocido y apreciado en Mallorca ?","sobrasada","S","O","B","R","A","S","A","D","A"]
[431,"Qué otro nombre reciben las judias y las habichuelas","alubias","A","L","U","B","I","A","S"]
[432,"¿ cómo se llama el azúcar de la fruta ?","fructosa","F","R","U","C","T","O","S","A"]
[433,"cuál es el pescado con el que se hace el pil pil","bacalao","B","A","C","A","L","A","O"]
[434,"el lúpulo se emplea en una bebida alcohólica muy corriente, ¿ en cuál ?","cerveza","C","E","R","V","E","Z","A"]
[435,"el vino de Jumilla es de la provincia de ?","Murcia","M","U","R","C","I","A"]
[436,"¿ cómo se le llama también a la mazorca de maíz ?","panocha","P","A","N","O","C","H","A"]
[437,"capital de Afganistan","Kabul","K","A","B","U","L"]
[438,"capital de Albania","Tirana","T","I","R","A","N","A"]
[439,"capital de Jordania","Amman","A","M","M","A","N"]
[440,"Capital de Bolivia","La Paz","L","A",null,"P","A","Z"]
[441,"¿ a qué país pertenece la isla de Creta ?","Grecia","G","R","E","C","I","A"]
[442,"¿ a qué provincia española pertecece Cazalla de la Sierra ?","Sevilla","S","E","V","I","L","L","A"]
[443,"¿ cómo se llama la costa en qué están Marbella y Fuengirola?","Costa del Sol","C","O","S","T","A",null,"D","E","L",null,"S","O","L"]
[444,"cuál es el golfo mas grande del mundo ? el de...","Golfo de Mejico","M","E","J","I","C","O"]
[445,"¿ cuál es el lago mayor del mundo ?","Mar Caspio","M","A","R",null,"C","A","S","P","I","O"]
[446,"cuál es el país mas grande de la islas de la  Gran Bretaña ?","Inglaterra","I","N","G","L","A","T","E","R","R","A"]
[447,"cuál es el país que está situado entre Perú y Colombia ?","Ecuador","E","C","U","A","D","O","R"]
[448,"cuál es el río mas ancho del mundo?","Amazonas","A","M","A","Z","O","N","A","S"]
[449,"¿ el asesinato de qué Archiduque desencadenó la primera guerra mundial ?","Francisco Fernando","F","R","A","N","C","I","S","C","O",null,"F","E","R","N","A","N","D","O"]
[450,"¿Qué general estadounidense \"murió con las botas puestas\"?","Custer","C","U","S","T","E","R"]
[451,"En qué año llegó Colón a América por primera vez ?",1492,1,4,9,2]
[452,"Si mezclamos aceite, ajo, pan, tomate, pepino, pimiento, agua y un poco de vinagre, estamos haciendo un...","gazpacho","G","A","Z","P","A","C","H","O"]
[453,"de qué comunidad es típico el lacon con grelos ?","Galicia","G","A","L","I","C","I","A"]
[454,"en que región comen viejas","Canarias","C","A","N","A","R","I","A","S"]
[455,"Una de las repúblicas de la Federación Yugoslava cuya capital es Sarajevo","Bosnia Herzegovina","B","O","S","N","I","A",null,"H","E","R","Z","E","G","O","V","I","N","A"]
[456,"cadena montañosa de Europa","Balcanes","B","A","L","C","A","N","E","S"]
[457,"en que provincia esta Tarancón?","Cuenca","C","U","E","N","C","A"]
[458,"Cuantas estrellas tiene la bandera de los EE.UU.","cincuenta",5,"O"]
[459,"Dónde está la única estatua del mundo dedicada a Lucifer (El Angel Caido)","Madrid","M","A","D","R","I","D"]
[460,"cuál es el río mas importante que pasa por Valladolid ?","Pisuerga","P","I","S","U","E","R","G","A"]
[461,"cuál es el río más largo de Europa ?","Volga","V","O","L","G","A"]
[462,"cuál es la época histórica de la que no se conservan testimonios escritos ?","Prehistoria","P","R","E","H","I","S","T","O","R","I","A"]
[463,"cuál fue el primer presidente de los EE.UU. nacido en el siglo XX  ","John Fitzgerald Kennedy","K","E","N","N","E","D","Y"]
[464,"cuál fue el primer presidente de los EE.UU. que sobrevivió después de haber sido herido por un arma de fuego","Ronald Reagan","R","O","N","A","L","D",null,"R","E","A","G","A","N"]
[465,"cuál fue el tratado por el cual, Godoy y Napoleón, decidieron repartirse Portugal","Fontainebleau","F","O","N","T","A","I","N","E","B","L","E","A","U"]
[466,"cuál fue la primera batalla ganada a Napoleón en España","la batalla de Bailén","B","A","I","L","E","N"]
[467,"¿español / francés, \"de nada\"?","de rien","D","E",null,"R","I","E","N"]
[468,"Como se dice \"Zapatero\" en inglés","shoemaker","S","H","O","E","M","A","K","E","R"]
[469,"¿Cuál es el idioma oficial de la India?","hindi","H","I","N","D","I"]
[470,"en latín ratón","mus","M","U","S"]
[471,"En francés, queso","frommage","F","R","O","M","M","A","G","E"]
[472,"Nombres técnicos de lo físico y lo lógico en un ordenador (máquina y programas)?","hardware y software","H","A","R","D","W","A","R","E",null,"S","O","F","T","W","A","R","E"]
[473,"Primera letra del alfabeto griego","alfa","A","L","F","A"]
[474,"Segunda letra del alfabeto griego","beta","B","E","T","A"]
[475,"quien escribió \" el viaje a ninguna parte \" Fernándo","Fernando Fernán Gomez","F","E","R","N","A","N",null,"G","O","M","E","Z"]
[476,"nombre vulgar dado al ácido acetilsalicilico","aspirina","A","S","P","I","R","I","N","A"]
[477,"por que medio esta unido el niño a la placenta","cordón unbilical","C","O","R","D","O","N",null,"U","M","B","I","L","I","C","A","L"]
[478,"que es lo qué hace un diurético","orinar","O","R","I","N","A","R"]
[479,"que parte del cuerpo se inflama con la hepatitis","hígado","H","I","G","A","D","O"]
[480,"qué se cae cuando tienes alopecia ? el…","el cabello","C","A","B","E","L","L","O"]
[481,"¿Dónde nació Jesús?","Belen","B","E","L","E","N"]
[482,"Ladrón que roba en el mar","pirata","P","I","R","A","T","A"]
[483,"Palo de una embarcación","mastil","M","A","S","T","I","L"]
[484,"arte que no se vincula a la representación de la realidad tangible","abstracto","A","B","S","T","R","A","C","T","O"]
[485,"cómo se llama el soporte que emplean los pintores para sostener un lienzo ?","caballete","C","A","B","A","L","L","E","T","E"]
[486,"cómo se llaman los muñecos falleros de Valencia ?","ninots","N","I","N","O","T","S"]
[487,"cuál es la pintura más observada en el museo de Louvre ?","La Gioconda","L","A",null,"G","I","O","C","O","N","D","A"]
[488,"en qué país nació el Renacimiento ?","Italia","I","T","A","L","I","A"]
[489,"que palacio se construyó junto a la Alhambra de Granada ?","palacio de Carlos V","C","A","R","L","O","S",null,"V"]
[490,"cómo se denomina al conjunto de las crias que una madre pare de una vez ?","camada","C","A","M","A","D","A"]
[491,"¿ cómo se llama a la cria de abejas ?","apicultura","A","P","I","C","U","L","T","U","R","A"]
[492,"¿ cómo se llama a la última porción del intestino delgado ?","recto","R","E","C","T","O"]
[493,"¿ cómo se llama el hueso que está situado al lado de la tíbia","peroné","P","E","R","O","N","E"]
[494,"¿ cómo se llama el orificio de desembocadura del esófago en el estómago","cardias","C","A","R","D","I","A","S"]
[495,"¿ cómo se llama la ventana transparente que permite entrar la luz en el ojo ?","cornea","C","O","R","N","E","A"]
[496,"Qué flor fue el símbolo de la revolución en Portugal ?","clavel","C","L","A","V","E","L"]
[497,"Qué puerto norteamericano fue devastado por un ataque japonés durante la segunda guerra mundial","Pearl Harbor","P","E","A","R","L",null,"H","A","R","B","O","R"]
[498,"Qué rey fue apodado \"el Sabio\"","Alfonso X","A","L","F","O","N","S","O",null,"X"]
[499,"Qué tipo de pinturas hay en la cueva de Altamira","pinturas rupestres","R","U","P","E","S","T","R","E","S"]
[500,"¿Quién es el autor de \"La guerra del fin del mundo\" ?","Mario Vargas LLosa","M","A","R","I","O",null,"V","A","R","G","A","S",null,"L","L","O","S","A"]
[501,"¿Quién escribió \"El resplandor\"?","Stephen King","S","T","E","P","H","E","N",null,"K","I","N","G"]
[502,"¿Quién escribió \"El silencio de los corderos\"","Thomas Harris","T","H","O","M","A","S",null,"H","A","R","R","I","S"]
[503,"Autor de \"El perro del Hortelano\"","Lope de Vega","L","O","P","E",null,"D","E",null,"V","E","G","A"]
[504,"¿ Cuál es el primer libro de la Biblia ?","Genesis","G","E","N","E","S","I","S"]
[505,"Una hermosa casa tengo, de rojo terciopelo forrada, con sillones blancos de hueso y en medio una dama que baila (adivinanza)","la boca","L","A",null,"B","O","C","A"]
[506,"De qué arbol se obtiene la ginebra ?","enebro comun","E","N","E","B","R","O",null,"C","O","M","U","N"]
[507,"Mal de muchos..........?","consuelo de tontos","C","O","N","S","U","E","L","O",null,"D","E",null,"T","O","N","T","O","S"]
[508,"¿ qué ocurre cuando tiramos una cerilla dentro de un tanque ?","flota","F","L","O","T","A"]
[509,"unidad monetaria de china","yuan","Y","U","A","N"]
[510,"Quién fué el fundador de la Unión General de Trabajadores (UGT) ?","Pablo Iglesias","P","A","B","L","O",null,"I","G","L","E","S","I","A","S"]
[511,"Quien sustituyó a François Miterrand en la presidencia de la republica francesa en 1995","Jacques Chirac","J","A","C","Q","U","E","S",null,"C","H","I","R","A","C"]
[512,"¿en qué ciudad se encuentra la Torre de la Calahorra?","Cordoba","C","O","R","D","O","B","A"]
[513,"¿ En qué palacio arabe se puede contemplar el Patio de los Leones ? en Granada","Alhambra de Granada","L","A",null,"A","L","H","A","M","B","R","A"]
[514,"¿Cuál es el cuadro más impresionante de Pablo Picasso?","Guernica","G","U","E","R","N","I","C","A"]
[515,"¿ cuál es el arte de escribir ? la…","caligrafía","C","A","L","I","G","R","A","F","I","A"]
[516,"qué función tienen las amigdalas ? defendernos de…","defendernos de los microbios","M","I","C","R","O","B","I","O","S"]
[517,"qué nombre recibe el rocio cuando se congela  ?","escarcha","E","S","C","A","R","C","H","A"]
[518,"qué tejido de nuestro cuerpo necesita calcio ? el…","el tejido óseo","O","S","E","O"]
[519,"cómo llamamos a la asociación de dos especies con dependencia y beneficios mutuos","simbiosis","S","I","M","B","I","O","S","I","S"]
[520,"qué teoría afirma que las especies se transformaron a través del tiempo ? la…","la evolucionista","E","V","O","L","U","C","I","O","N","I","S","T","A"]
[521,"a qué tejido pertenecen las células de la piel ? al…","al epitelial","E","P","I","T","E","L","I","A","L"]
[522,"por qué no hay plantas a 200 m. de profundidad del mar ? no hay…","porque no hay luz","L","U","Z"]
[523,"sabes con qué nombre se conoce a los hidratos de carbono","azúcares","A","Z","U","C","A","R","E","S"]
[524,"en qué parte de la célula tiene lugar la respiración ? en las…","en las mitocondrias","M","I","T","R","O","C","O","N","D","R","I","A","S"]
[525,"qué órgano regula la producción de hormonas ? el…","el hipotálamo","H","I","P","O","T","A","L","M","O"]
[526,"cómo se llaman los rios de hielo ?","glaciares","G","L","A","C","I","A","L","E","S"]
[527,"cuántos cromosomas contiene un espermatozoide humano","23 cromosomas",2,3]
[528,"el proceso por el que el polen es llevado al ovario de una flor se llama...","polinización","P","O","L","I","N","I","Z","A","C","I","O","N"]
[529,"cómo se llama la energía del viento","energía eólica","E","O","L","I","C","A"]
[530,"en qué era existieron los bosques carboníferos","en la primaria","P","R","I","M","A","R","I","A"]
[531,"cuál es la unidad de presión en el sistema internacional ? el…","el pascal","P","A","S","C","A","L"]
[532,"qué elemento químico se utiliza como patrón para medir las masas atómicas","el carbono","C","A","R","B","O","N","O"]
[533,"en qué zona de la Tierra es mayor la fuerza de gravedad","en los polos","P","O","L","O","S"]
[534,"qué magnitud resulta del cociente entre fuerza y superficie","la presión","P","R","E","S","I","O","N"]
[535,"qué órgano caracteriza a la especie humana por su tamaño y desarrollo ?","el cerebro","C","E","R","E","B","R","O"]
[536,"qué parte de nuestro ojo funciona como una lente convergente","el cristalino","C","R","I","S","T","A","L","I","N","O"]
[537,"cómo se llaman los animales que no tienen esqueleto interno ?","invertebrados","I","N","V","E","R","T","E","B","R","A","D","O","S"]
[538,"qué grupo de alimentos forman los hidratos de carbono y las grasas ?","energéticos","E","N","E","R","G","E","T","I","C","O","S"]
[539,"qué es más rápido, la luz o el sonido ","la luz","L","U","Z"]
[540,"por qué punto cardinal sale el Sol","por el este","E","S","T","E"]
[541,"la obstrucción de un vaso sanguíneo se llama...","trombosis","T","R","O","M","B","O","S","I","S"]
[542,"que máquina transforma la electricidad en movimiento","el motor eléctrico","M","O","T","O","R",null,"E","L","E","C","T","R","I","C","O"]
[543,"qué sustancia gaseosa pasa de los pulmones a la sangre ? el…","el oxígeno","O","X","I","G","E","N","O"]
[544,"qué cereal se cultiva en las zonas encharcadas ","el arroz","A","R","R","O","Z"]
[545,"dónde se verifica la última fase de la digestión ? en el…","en el intestino delgado","I","N","T","E","S","T","I","N","O",null,"D","E","L","G","A","D","O"]
[546,"las enfermedades de la gota afecta a los tendones y las....","articulaciones","A","R","T","I","C","U","L","A","C","I","O","N","E","S"]
[547,"qué se almacena en la vesícula biliar","bilis","B","I","L","I","S"]
[548,"qué órgano produce la bilis ? el…","el hígado","H","I","G","A","D","O"]
[549,"cómo llamamos a los cuerpos que tienen la propiedad de atraer el hierro ?","imanes","I","M","A","N","E","S"]
[550,"qué parte del cuerpo riega la arteria femoral ?","la pierna","P","I","E","R","N","A"]
[551,"cómo llamamos a la vibraciones captadas por nuestro oído ?","sonidos","S","O","N","I","D","O","S"]
[552,"cómo se denominan los animales que se alimentan de carne","carnívoros","C","A","R","N","I","V","O","R","O","S"]
[553,"cómo se llaman los cuerpos que permiten el paso de la luz a través de ellos","transparentes","T","R","A","N","S","P","A","R","E","N","T","E","S"]
[554,"en qué órgano toma la sangre el oxígeno del aire","en los pulmones","P","U","L","M","O","N","E","S"]
[555,"cómo se llama el conducto que lleva la orina desde la vejiga al exterior","uretra","U","R","E","T","R","A"]
[556,"en que intestino se absorbe el agua","en el intestino grueso","I","N","T","E","S","T","I","N","O",null,"G","R","U","E","S","O"]
[557,"el esqueleto lo forman los...","huesos","H","U","E","S","O","S"]
[558,"cómo se llama el órgano que bombea la sangre ","corazón","C","O","R","A","Z","O","N"]
[559,"cómo llamamos a los lugares que tienen muchos álamos","alamedas","A","L","A","M","E","D","A","S"]
[560,"la unión de un óvulo y un espermatozoide da lugar a una célula llamada...","zigoto","Z","I","G","O","T","O"]
[561,"qué nombre científico recibe el acto sexual ?","coito o cópula","C","O","I","T","O",null,"C","O","P","U","L","A"]
[562,"en qué parte de la sangre se encuentra la hemoglobina","en los glóbulos rojos","G","L","O","B","U","L","O","S",null,"R","O","J","O","S"]
[563,"qué metal se extrae de la galena","el plomo","P","L","O","M","O"]
[564,"cómo se denomina la unión de un óvulo y un espermatozoide","fecundación","F","E","C","U","N","D","A","C","I","O","N"]
[565,"qué clase de animales eran los Trilobites","crustáceos","C","R","U","S","T","A","C","E","O","S"]
[566,"en que parte del átomo se encuentran los protones ? en el…","en el núcleo","N","U","C","L","E","O"]
[567,"sabes quién  fue el autor de la teoría de la evolución más aceptada actualmente","Darwin","D","A","R","W","I","N"]
[568,"los cuerpos que no permiten el paso de la luz a través de ellos se llaman... ","opacos","O","P","A","C","O","S"]
[569,"en cuántas estaciones se divide el año","en cuatro","C","U","A","T","R","O"]
[570,"qué nombre reciben los animales que conviven con el hombre ? animales…","animales domésticos","D","O","M","E","S","T","I","C","O","S"]
[571,"de qué árbol sacamos el corcho","del alcornoque","A","L","C","O","R","N","O","Q","U","E"]
[572,"que nombre reciben las partes duras que hay en el cuerpo","huesos","H","U","E","S","O","S"]
[573,"qué sentido se localiza en la lengua","el gusto","G","U","S","T","O"]
[574,"quién midió por primera vez la presión atmosférica","Torricelli","T","O","R","R","I","C","E","L","L","I"]
[575,"cómo se denominan las bacterias que producen enfermedades","patógenas","P","A","T","O","G","E","N","A","S"]
[576,"en que parte del átomo se encuentra los neutrones","en el nucleo","N","U","C","L","E","O"]
[577,"en nuestro cuerpo. ¿ qué aparato se encarga de transformar los alimentos ?","el aparato digestivo","D","I","G","E","S","T","I","V","O"]
[578,"en qué fecha comienza la primavera","el 21 de marzo",2,1,null,"D","E",null,"M","A","R","Z","O"]
[579,"en condiciones normales. ¿ a qué temperatura hierve el agua ?","a 100 º grados",1,"O","O",null,"G","R","A","D","O","S"]
[580,"sobre qué órgano musculoso están situadas las papilas gustativas ","la lengua","L","E","N","G","U","A"]
[581,"qué órganos producen los óvulos sexuales en la mujer","los ovarios","O","V","A","R","I","O","S"]
[582,"en qué parte de la flor se producen los granos de polen ?  en los… ","en los estambres","E","S","T","A","M","B","R","E","S"]
[583,"qué sentido tenemos en los dedos","el tacto","T","A","C","T","O"]
[584,"la entrada de aire en los pulmones se llama...","inspiración","I","N","S","P","I","R","A","C","I","O","N"]
[585,"qué se forma al construir una presa en un río","un pantano o embalse","P","A","N","T","A","N","O",null,"E","M","B","A","L","S","E"]
[586,"cómo se llamamos a la energía almacenada en el núcleo de los átomos","energía nuclear","E","N","E","R","G","I","A",null,"N","U","C","L","E","A","R"]
[587,"cómo se llaman los movimientos sísmicos que se producen en el mar","maremotos","M","A","R","E","M","O","T","O","S"]
[588,"cuántos meses dura normalmente un embarazo humano","9 meses","N","U","E","V","E"]
[589,"en qué planeta del Sistema Solar pesarías más","en Júpiter","J","U","P","I","T","E","R"]
[590,"qué nombre reciben las reacciones químicas que absorben calor","endotérmicas","E","N","D","O","T","E","R","M","I","C","A","S"]
[591,"qué físico estableció el principio de la inercia","Newton","N","E","W","T","O","N"]
[592,"en qué órgano se produce la pepsina ? en el…","en el estomago","E","S","T","O","M","A","G","O"]
[593,"cómo se llama el valor de una fuerza","intensidad","I","N","T","E","N","S","I","D","A","D"]
[594,"cómo se denomina a la energía debida al movimiento de un cuerpo","energía cinética","C","I","N","E","T","I","C","A"]
[595,"qué aparato mide la presión atmosférica","el barómetro","B","A","R","O","M","E","T","R","O"]
[596,"qué aparato indica la dirección del viento ? la…","la veleta","V","E","L","E","T","A"]
[597,"qué sustancias hacen más fértil el suelo ? los…","los abonos","A","B","O","N","O","S"]
[598,"con qué otro nombre se conoce la constelación Osa Mayor","el carro","E","L",null,"C","A","R","R","O"]
[599,"qué se transporta por medio de un oleoducto","petróleo","P","E","T","R","O","L","E","O"]
[600,"la pesca que se practica en rios se llama...","pesca fluvial","F","L","U","V","I","A","L"]
[601,"por qué arteria del corazón sale la sangre oxigenada","por la arteria aorta","A","O","R","T","A"]
[602,"qué deja la sangre en los pulmones","dioxido de carbono","D","I","O","X","I","D","O",null,"D","E",null,"C","A","R","B","O","N","O"]
[603,"en qué transforma la energía eléctrica una bombilla","en luz y calor","L","U","Z",null,"Y",null,"C","A","L","O","R"]
[604,"de qué depende el tipo de flora y fauna de un lugar ? del…","del clima","C","L","I","M","A"]
[605,"qué nombre recibe el conjunto de los huesos del cuerpo","esqueleto","E","S","Q","U","E","L","E","T","O"]
[606,"cómo llamamos al agua en estado sólido","hielo","H","I","E","L","O"]
[607,"qué nombre recibe el conjunto de pétalos de una flor","corola","C","O","R","O","L","A"]
[608,"qué glóbulos fabrica el bazo","linfocitos","L","I","N","F","O","C","I","T","O","S"]
[609,"cómo se llaman los órganos respiratorios de los peces","branquias","B","R","A","N","Q","U","I","A","S"]
[610,"en qué se descomponen finalmente las proteinas durante la digestión ? en…","en aminoácidos","A","M","I","N","O","A","C","I","D","O","S"]
[611,"qué clase de principio inmediato es la albúmina ? una…","una proteina","P","R","O","T","E","I","N","A"]
[612,"qué nombre recibe la unión de dos neuronas","sinapsis","S","I","N","A","P","S","I","S"]
[613,"a qué estado pasa el vapor de agua cuando se condensa","a líquido","L","I","Q","U","I","D","O"]
[614,"cómo llamamos al hueso del muslo","fémur","F","E","M","U","R"]
[615,"qué gas contiene el aire imprescindible para la vida","el oxígeno","O","X","I","G","E","N","O"]
[616,"alrededor de qué gira un satélite ? de un…","de un planeta","P","L","A","N","E","T","A"]
[617,"qué estrella podemos ver durante el día ? el…","el Sol","S","O","L"]
[618,"qué clase de astro es la Luna","un satélite","S","A","T","E","L","I","T","E"]
[619,"qué ciencia estudia la herencia ? la…","la genética","G","E","N","E","T","I","C","A"]
[620,"qué glándula fabrica la tiroxina","el tiroides","T","I","R","O","I","D","E","S"]
[621,"qué magnitud se mide en km/hora","la velocidad","V","E","L","O","C","I","D","A","D"]
[622,"para moverse, que utilizan los peces ? las…","las aletas","A","L","E","T","A","S"]
[623,"qué sabor tienen el limón","acido","A","C","I","D","O"]
[624,"cómo se llaman lo animales que comen carne","carnivoros","C","A","R","N","I","V","O","R","O","S"]
[625,"qué gas necesita una planta para hacer la fotosintesis","dióxido de carbono","D","I","O ","X","I","D","O",null,"D","E",null,"C","A","R","B","O","N","O"]
[626,"qué sustancias fabrican las glándulas de secreción interna","hormonas","H","O","R","M","O","N","A","S"]
[627,"qué células nerviosas son las encargadas de transmitir información ? las…","las neuronas","N","E","U","R","O","N","A","S"]
[628,"cómo se denomina la capa de la Tierra en que habitan los seres vivos","biosfera","B","I","O","S","F","E","R","A"]
[629,"qué seres vivos se alimentan de sutancias minerales y energía solar ? los…","los vegetales","L","O","S",null,"V","E","G","E","T","A","L","E","S"]
[630,"qué nombre recibe el movimiento de una planta inclinándose hacia la luz","fototropismo","F","O","T","O","T","R","O","P","I","S","M","O"]
[631,"cómo se llama a la unidad biológica formada por un lugar y los seres que lo habitan","ecosistema","E","C","O","S","I","S","T","E","M","A"]
[632,"qué elementos químicos forman el dióxido de carbono","carbono y oxigeno","C","A","R","B","O","N","O",null,"O","X","I","G","E","N","O"]
[633,"qué forma el pabellon auditivo externo ? la…","la oreja","O","R","E","J","A"]
[634,"cómo se llama la carne que guarnece la dentadura","encía","E","N","C","I","A"]
[635,"qué produce el dolor en cualquier nervio","neuralgia","N","E","U","R","A","L","G","I","A"]
[636,"con qué hace el nido la golondrina","con barro","B","A","R","R","O"]
[637,"qué es la miopia ? un defecto…","un defecto ocular","O","C","U","L","A","R"]
[638,"por dónde toman las plantas el agua","por la raiz","R","A","I","Z"]
[639,"para qué sirven las vacunas ? para prevenir…","para prevenir enfermedades","E","N","F","E","R","M","E","D","A","D","E","S"]
[640,"a qué aparato pertenecen los riñones","al aparato excretor","E","X","C","R","E","T","O","R"]
[641,"cómo se llama la  fase sueño que pasan algunos animales durante el invierno","hibernación o letargo","H","I","B","E","R","N","A","C","I","O","N"]
[642,"a qué tipo de alimentos pertenecen las proteinas ?  a los…","a los plásticos","P","L","A","S","T","I","C","O","S"]
[643,"cómo se llama la salida de sangre de un vaso sanguíneo","hemorragia","H","E","M","O","R","R","A","G","I","A"]
[644,"qué órgano destruye la tuberculosis","los pulmones","P","U","L","M","O","N","E","S"]
[645,"qué nombre recibe la deformación lateral de la columna vertebral","escoliosis","E","S","C","O","L","I","O","S","I","S"]
[646,"cómo se llama la mezcla de estaño y cobre","bronce","B","R","O","N","C","E"]
[647,"los árboles que no pierden su hoja se llaman de hoja...","perenne","P","E","R","E","N","N","E"]
[648,"dónde se encuentra el tímpano","en el oido","O","I","D","O"]
[649,"el peciolo es el rabito que une la hoja al","tallo","T","A","L","L","O"]
[650,"qué dientes sirven para moler los alimentos","las muelas","M","U","E","L","A","S"]
[651,"di las tres partes de las plantas","raíz, tallo, y hojas","R","A","I","Z",null,"T","A","L","L","O",null,"H","O","J","A","S"]
[652,"cómo se llama la parte coloreada del ojo","iris","I","R","I","S"]
[653,"quiénes fabrican la miel","las abejas","A","B","E","J","A","S"]
[654,"qué estación va después del invierno","la primavera","P","R","I","M","A","V","E","R","A"]
[655,"qué es un panda","un oso","O","S","O"]
[656,"qué tipo de microorganismo produce la tuberculosis ? una…","una bacteria","B","A","C","T","E","R","I","A"]
[657,"en qué parte de las células están los cromosomas","en el núcleo","N","U","C","L","E","O"]
[658,"en qué parte de la flor están los sépalos ? en el…","en el cáliz","C","A","L","I","Z"]
[659,"qué era fue anterior a la Primaria","la era arcaica","A","R","C","A","I","C","A"]
[660,"en qué clase de reacciones nucleares se unen varios átomos","en la de fusión","F","U","S","I","O","N"]
[661,"qué les ocurre a dos cargas eléctricas del mismo signo que están próximas","que se repelen","R","E","P","E","L","E","N"]
[662,"en qué estación caen las hojas de los árboles","en otoño","O","T","O","Ñ","O"]
[663,"al hijo de la oveja se le llama","cordero","C","O","R","D","E","R","O"]
[664,"las plantas respiran a través de...","las hojas","H","O","J","A","S"]
[665,"completa. Las colmenas es la vivienda de las....","abejas","A","B","E","J","A","S"]
[666,"cómo se llama el aire cuando se mueve","viento","V","I","E","N","T","O"]
[667,"cuál es el planeta más alejado del Sol","Plutón","P","L","U","T","O","N"]
[668,"qué nombre recibe las articulación por la que se dobla el brazo","codo","C","O","D","O"]
[669,"cuándo empieza el otoño","en septiembre","S","E","P","T","I","E","M","B","R","E"]
[670,"qué produce en los dientes el comer muchos caramelos","caries","C","A","R","I","E","S"]
[671,"qué español descubrió la circulación de la sangre","Miguel Servet","M","I","G","U","E","L",null,"S","E","R","V","E","T"]
[672,"qué corpúsculos de la sangre transportan el oxígeno","los glóbulos rojos","G","L","O","B","U","L","O","S",null,"R","O","J","O","S"]
[673,"qué clíma tienen en las inslas Canarias","clima subtropical","S","U","B","T","R","O","P","I","C","A","L"]
[674,"cuál de éstas fuentes de energía es renovable: carbón, viento, petróleo","viento","V","I","E","N","T","O"]
[675,"qué aparato distribuye por el cuerpo las sustancias nutritivas y el oxígeno","el aparato circulatorio","C","I","R","C","U","L","A","T","O","R","I","O"]
[676,"cómo se llama el líquido que circula dentro de las plantas","savia","S","A","V","I","A"]
[677,"qué nombre reciben las hojitas verdes situadas en la base de la flor","sépalos","S","E","P","A","L","O","S"]
[678,"en qué estación del año se caen las hojas a los árboles","en otoño","O","T","O","Ñ","O"]
[679,"cómo se llaman los huesos con forma de arco, que unen la columna vertebral al esternón","costillas","C","O","S","T","I","L","L","A","S"]
[680,"cómo llamamos el movimiento de la Tierra alrededor del Sol","traslación","T","R","A","S","L","A","C","I","O","N"]
[681,"qué nombre recibe la unión de un hueso con otro","articulación","A","R","T","I","C","U","L","A","C","I","O","N"]
[682,"los riñones aparte de limpiar la sangre producen la....","orina","O","R","I","N","A"]
[683,"con qué aparato medimos la cantidad de lluvia que cae en un lugar","con el pluviómetro","P","L","U","V","I","O","M","E","T","R","O"]
[684,"cuáles son los huesos del brazo","cúbito y radio","C","U","B","I","T","O",null,"R","A","D","I","O"]
[685,"quién fue el descubridor de América","Cristobla Colón","C","R","I","S","T","O","B","A","L",null,"C","O","L","O","N"]
[686,"fecha del descubrimiento de América","12 de octubre de 1492",1,2,null,"O","C","T","U","B","R","E",null,1,4,9,2]
[687,"cómo se llama el satélite de la Tierra","Luna","L","U","N","A"]
[688,"cuántos planetas hay en el Sistema Solar",9,"N","U","E","V","E"]
[689,"cuántas horas tarda la Tierra en dar una vuelta sobre sí misma","24 horas",2,4]
[690,"cómo llamamos a los extremos del eje de la Tierra","polos","P","O","L","O","S"]
[691,"qué movimiento de la Tierra da lugar a los días y las noches","el de rotación","R","O","T","A","C","I","O","N"]
[692,"cómo llamamos al fenómeno de la destrucción del suelo","erosión","E","R","O","S","I","O","N"]
[693,"en qué órgano se fabrican los espermatozoides","en los testículos","T","E","S","T","I","C","U","L","O","S"]
[694,"cuál es nuestra galaxia ? la…","la Via Láctea","V","I","A",null,"L","A","C","T","E","A"]
[695,"qué elmentos químicos constituyen el agua","hidrógeno y oxígeno","H","I","D","R","O","G","E","N","O",null,"O","X","I","G","E","N","O"]
[696,"qué ciencia estudia los seres vivos","la biología","B","I","O","L","O","G","I","A"]
[697,"de dónde procede toda la energía que se utiliza en el ciclo de la vida","del Sol","S","O","L"]
[698,"cuál es el planeta más lejano al Sol","Plutón","P","L","U","T","O","N"]
[699,"qué clase de corriente eléctrica produce una pila","corriente continua","C","O","N","T","I","N","U","A"]
[700,"qué produce la poliomelitis","parálisis","P","A","R","A","L","I","S","I","S"]
[701,"cómo se llama la energía contenida en el núcleo de los átomos","energía nuclear","N","U","C","L","E","A","R"]
[702,"en qué aparato se introduce a los niños prematuros","en la incubadora","I","N","C","U","B","D","O","R","A"]
[703,"qué planeta del Sistema Solar tiene menos satélites","la Tierra","T","I","E","R","R","A"]
[704,"qué aparato mide la intensidad de una fuerza","el dinamómetro","D","I","N","A","M","E","T","R","O"]
[705,"capital de Argentina","Buenos Aires","B","U","E","N","O","S",null,"A","I","R","E","S"]
[706,"Buenos Aires es capital de","Argentina","A","R","G","E","N","T","I","N","A"]
[707,"capital de Austria","Viena","V","I","E","N","A"]
[708,"Viena es capital de","Austria","A","U","S","T","R","I","A"]
[709,"Capital de Bélgica","Bruselas","B","R","U","S","E","L","A","S"]
[710,"Bruselas es capital de","Bélgica","B","E","L","G","I","C","A"]
[711,"Capital de Bulgaria","Sofia","S","O","F","I","A"]
[712,"Sofia es capital de","Bulgaria","B","U","L","G","A","R","I","A"]
[713,"Capital de Chile","Santiago de Chile","S","A","N","T","I","A","G","O",null,"D","E",null,"C","H","I","L","E"]
[714,"Capital de Ecuador","Quito","Q","U","I","T","O"]
[715,"Quito es capital de","Ecuador","E","C","U","A","D","O","R"]
[716,"Nueva Delhi es capital de la","India","I","N","D","I","A"]
[717,"capital de Indonesia","Yakarta","Y","A","K","A","R","T","A"]
[718,"Yakarta es capital de","Indonesia","I","N","D","O","N","E","S","I","A"]
[719,"capital de Italia","Roma","R","O","M","A"]
[720,"capital de Marruecos","Rabat","R","A","B","A","T"]
[721,"Rabat es capital de","Marruecos","M","A","R","R","U","E","C","O","S"]
[722,"capital de Polonia","Varsovia","V","A","R","S","O","V","I","A"]
[723,"Varsovia es capital de","Polonia","P","O","L","O","N","I","A"]
[724,"capital de Portugal","Lisboa","L","I","S","B","O","A"]
[725,"Lisboa es capital de","Portugal","P","O","R","T","U","G","A","L"]
[726,"capital de Rusia","Moscu","M","O","S","C","U"]
[727,"Moscu es capital de","Rusia","R","U","S","I","A"]
[728,"capital de Suecia","Estocolmo","E","S","T","O","C","O","L","M","O"]
[729,"Estocolmo es capital de","Suecia","S","U","E","C","I","A"]
[730,"capital de Suiza","Berna","B","E","R","N","A"]
[731,"Berna es capital de","Suiza","S","U","I","Z","A"]
[732,"capital de Turquia","Ankara","A","N","K","A","R","A"]
[733,"Ankara es capital de","Turquia","T","U","R","Q","U","I","A"]
[734,"capital de México","México","M","E","X","I","C","O"]
[735,"capital de Irlanda","Dublín","D","U","B","L","I","N"]
[736,"Dublín es capital de","Irlanda","I","R","L","A","N","D","A"]
[737,"capital de Inglaterra","Londres","L","O","N","D","R","E","S"]
[738,"Londrés es capital de","Inglaterra","I","N","G","L","A","T","E","R","R","A"]
[739,"capital de Escocia","Edimburgo","E","D","I","M","B","U","R","G","O"]
[740,"Edimburgo es capital de","Escocia","E","S","C","O","C","I","A"]
[741,"capital de Noruega","Oslo","O","S","L","O"]
[742,"Oslo es capital de","Noruega","N","O","R","U","E","G","A"]
[743,"capital de Islandia","Reikiavik","R","E","I","K","I","A","V","I","K"]
[744,"Reikiavik es capital de","Islandia","I","S","L","A","N","D","I","A"]
[745,"capital de Finlandia","Helsinki","H","E","L","S","I","N","K","I"]
[746,"Helsinki es capital de","Finlandia","F","I","N","L","A","N","D","I","A"]
[747,"capital de Perú","Lima","L","I","M","A"]
[748,"Lima es capital de","Perú","P","E","R","U"]
[749,"el pepino es una fruta o una hortaliza","una hortaliza","H","O","R","T","A","L","I","Z","A"]
[750,"cómo se llama el sentido con el que diferenciamos los sabores","el gusto","G","U","S","T","O"]
[751,"di los nombres de las extremidades del cuerpo","brazos y piernas","B","R","A","Z","O","S",null,"P","I","E","R","N","A","S"]
[752,"cuántas fases tiene la luna","cuatro","C","U","A","T","R","O"]
[753,"qué metal es atraido por los imanes","el hierro","H","I","E","R","R","O"]
[754,"cómo se llaman las cavidades superiores del corazón","aurículas","A","U","R","I","C","U","L","A","S"]
[755,"cómo se denominan los niños nacidos antes de tiempo","prematuros","P","R","E","M","A","T","U","R","O","S"]
[756,"cómo se denominan las agrupaciones de estrellas","constelaciones","C","O","N","S","T","E","L","A","C","I","O","N","E","S"]
[757,"cuál es el órgano reproductor femenino de la flor ? el…","el gineceo","G","I","N","E","C","E","O"]
[758,"qué partículas se emiten en las radiaciones alfa","protones y neutrones","P","R","O","T","O","N","E","S",null,"N","E","U","T","R","O","N","E","S"]
[759,"qué aparato está constituido por los sistemas muscular, óseo y nervioso","el aparato locomotor","L","O","C","O","M","O","T","O","R"]
[760,"cuáles son las unidades básicas que forman nuestro cuerpo ? las…","las células","C","E","L","U","L","A","S"]
[761,"a dónde va a parar la sangre que sale del vetrículo derecho","a los pulmones","P","U","L","M","O","N","E","S"]
[762,"por qué aurícula entra la sangre recogida del cuerpo al corazón","por la derecha","D","E","R","E","C","H","A"]
[763,"qué parte de la planta sostiene las ramas y las hojas","el tallo","T","A","L","L","O"]
[764,"cómo se llama la articulación que une la mano con el brazo","muñeca","M","U","Ñ","E","C","A"]
[765,"cómo se llaman las hojas de colores que protegen el interior de la flor","pétalos","P","E","T","A","L","O","S"]
[766,"en qué se transforma la flor fecundada","en fruto","F","R","U","T","O"]
[767,"qué tipo de tallo tienen los árboles","leñoso","L","E","Ñ","O","S","O"]
[768,"los alimentos pasan del esófago al...","estómago","E","S","T","O","M","A","G","O"]
[769,"dónde se desarrolla el óvulo fecundado en el aparato reproductor femenino","en el utero","U","T","E","R","O"]
[770,"cómo se llaman los conductos que unen los ovarios al útero","trompas de Falopio","T","R","O","P","A","S",null,"D","E",null,"F","A","L","O","P","I","O"]
[771,"cómo se llaman las ramas en que se divide la tráquea","bronquios","B","R","O","N","Q","U","I","O","S"]
[772,"cómo se llama la energía que obtenemos del viento","energía eólica","E","O","L","I","C","A"]
[773,"que comen las vacas","hierba","H","I","E","R","B","A"]
[774,"en qué parte del cuerpo están los codos","en los brazos","B","R","A","Z","O","S"]
[775,"cómo llamamos a las máquinas en las que se produce electricidad","generadores eléctricos","G","E","N","E","R","A","D","O","R","E","S"]
[776,"dónde se libera el dioxido de carbono de la sangre ? en los…","en los pulmones","P","U","L","M","O","N","E","S"]
[777,"dónde se encuentran las gládulas sudoríparas","bajo la piel","B","A","J","O",null,"L","A",null,"P","I","E","L"]
[778,"cuál es el elemento fundamental en la composición de los seres vivos","el carbono","C","A","R","B","O","N","O"]
[779,"qué aleación está formada por hierro y carbono","el acero","A","C","E","R","O"]
[780,"qué membrana recubre a los centros nerviosos ? las…","las meninges","M","E","N","I","N","G","E","S"]
[781,"cuál es la unidad de fuerza en el sistema internacional","el Newton","N","E","W","T","O","N"]
[782,"cuando el sonido llega a un obstáculo y rebota, que se produce","el eco","E","C","O"]
[783,"qué órganos expulsan el dioxido de carbono de nuestro cuerpo ? los…","los pulmones","P","U","L","M","O","N","E","S"]
[784,"cómo se denomina el desgaste de la superficie terrestre","erosión","E","R","O","S","I","O","N"]
[785,"cómo llamamos a los animales que cazan para conseguir su alimento","depredadores","D","E","P","R","E","D","A","D","O","R","E","S"]
[786,"con qué zona del encéfalo controlamos la coordinación de los movimientos","con el cerebelo","C","E","R","E","B","E","L","O"]
[787,"dónde se producen los glóbulos rojos de la sangre ? en la…","en la medula ósea","M","E","D","U","L","A",null,"O","S","E","A"]
[788,"qué músculo se contrae rítmicamente","el corazón","C","O","R","A","Z","O","N"]
[789,"qué dos cosas obtiene un ser vivo de los alimentos","materia y energía","M","A","T","E","R","I","A",null,"E","N","E","R","G","I","A"]
[790,"qué proteina contienen las uñas","queratina","Q","U","E","R","A","T","I","N","A"]
[791,"qué órgano del sistema nervioso controla el equilibrio ? el…","el cerebelo","C","E","R","E","B","E","L","O"]
[792,"cuál es la fórmula del agua","H2 O","H",2,"O"]
[793,"qué elemento químico es el ozono","oxígeno","O","X","I","G","E","N","O"]
[794,"cómo se llaman los actos involuntarios","actos reflejos","R","E","F","L","E","J","O","S"]
[795,"qué animal nos da la lana ?","la oveja","O","V","E","J","A"]
[796,"quién es la mamá del pollito","la gallina","G","A","L","L","I","N","A"]
[797,"la cría de la rana se llama...","renacuajo","R","E","N","A","C","U","A","J","O"]
[798,"en que estación se siega el trigo ? en…","en verano","V","E","R","A","N","O"]
[799,"de dónde se saca el papel ? de la…","de la madera","M","A","D","E","R","A"]
[800,"cómo se llaman las casas de los pájaros","nidos","N","I","D","O","S"]
[801,"cómo se llaman los restos de los seres vivos petrificados","fósiles","F","O","S","I","L","E","S"]
[802,"cuál es el elemento radiactivo más conocido","uranio","U","R","A","N","I","O"]
[803,"qué clase de carga eléctrica tiene un protón","positiva","P","O","S","I","T","I","V","A"]
[804,"qué aparato mide la intensidad de la corriente","el amperímetro","A","M","P","E","R","I","M","E","T","R","O"]
[805,"en qué órganos sexuales se  fabrican los óvulos","en los ovarios","O","V","A","R","I","O","S"]
[806,"en qué constelación se encuentra la Estrella Polar","en la Osa Menor","O","S","A",null,"M","E","N","O","R"]
[807,"las órdenes que salen del cerebro se transmiten a los músculos por medio de...","los nervios","N","E","R","V","I","O","S"]
[808,"qué hay dentro del pistilo de una flor","ovulos","O","V","U","L","O","S"]
[809,"qué línea imaginaria rodea a la Tierra por su parte más ancha ? el…","el Ecuador","E","C","U","A","D","O","R"]
[810,"cómo se llama la parte de las plantas que está dentro de la tierra","raíz","R","A","I","Z"]
[811,"qué producen los estambres de las flores","polen","P","O","L","E","N"]
[812,"dónde se encuentra la rótula","en la rodilla","R","O","D","I","L","L","A"]
[813,"con qué respiran los peces","con las branquias","B","R","A","N","Q","U","I","A","S"]
[814,"con qué aparato se mide la velocidad del  viento","con el anemómetro","A","N","E","M","O","M","E","T","R","O"]
[815,"qué órganos del cuerpo, al encogerse hacen que se muevan los huesos","los músculos","M","U","S","C","U","L","O","S"]
[816,"cómo se llama el líquido que sale por los poros de la piel","sudor","S","U","D","O","R"]
[817,"el ruido que produce un rayo se llama...","trueno","T","R","U","E","N","O"]
[818,"en qué se transforma el trigo cuando se muele","en harina","H","A","R","I","N","A"]
[819,"qué colores se deben mezclar para conseguir el color naranja","amarillo y rojo","A","M","A","R","I","L","L","O",null,"R","O","J","O"]
[820,"para que se eleve la cometa es necesario que haya...","viento","V","I","E","N","T","O"]
[821,"a qué velocidad se transmite el sonido en el aire  por segundo","340 m/seg.",3,4,"O"]
[822,"el bíceps ¿ es un músculo flexor o extensor ?","flexor","F","L","E","X","O","R"]
[823,"cuántos sentidos tiene el cuerpo humano","cinco","C","I","N","C","O"]
[824,"de dónde se saca el gas butano","del petróleo","P","E","T","R","O","L","E","O"]
[825,"qué aparato registra los movimientos sismicos","el sismógrafo","S","I","S","M","O","G","R","A","F","O"]
[826,"qué propiedad tiene un imán para atraer a otros cuerpos","magnetismo","M","A","G","N","E","T","I","S","M","O"]
[827,"cuántas capas tiene la Tierra","tres","T","R","E","S"]
[828,"cómo se llaman las montañas de arena que son movidas por el viento","dunas","D","U","N","A","S"]
[829,"qué clase de microorganismos son las levaduras","bacterias","B","A","C","T","E","R","I","A","S"]
[830,"cómo están agrupadas los cromosomas en una celula","en parejas","P","A","R","E","J","A","S"]
[831,"qué parte de la flor tiene forma de copa","el cáliz","C","A","L","I","Z"]
[832,"en qué era geológica vivimos","en la era Cuaternaria","C","U","A","R","T","E","R","N","A","R","I","A"]
[833,"qué elemento químico es fundamental para construir la \"bomba H\"","hidrógeno","H","I","D","R","O","G","E","N","O"]
[834,"cómo se llaman los cuerpos que no permitan el paso de la luz","opacos","O","P","A","C","O","S"]
[835,"cómo se llaman los animales que tienen esqueleto interno","vertebrados","V","E","R","T","E","B","R","A","D","O","S"]
[836,"desde el estómago los alimentos pasan al intestino...","delgado","D","E","L","G","A","D","O"]
[837,"cómo se llama la parte de la esfera terrestre en que hay vida","biosfera","B","I","O","S","F","E","R","A"]
[838,"qué líquido envuelve al feto","el líquido amniótico","A","M","N","I","O","T","I","C","O"]
[839,"cuál es el planeta más pequeño del Sistema Solar","Plutón","P","L","U","T","O","N"]
[840,"qué sustancia hace que las plantas sean verdes","la clorifila","C","L","O","R","O","F","I","L","A"]
[841,"cuáles son los dos elementos principales que forman el bronce","el cobre y el estaño","C","O","B","R","E",null,"E","S","T","A","Ñ","O"]
[842,"qué células forman es sistema nervioso","las neuronas","N","E","U","R","O","N","A","S"]
[843,"qué metal necesitan los glóbulos rojos para poder transportar el oxígeno","el hierro","H","I","R","R","O"]
[844,"que arterias riegan, alimentan oxigenan el corazón","las arterias coronarias","C","O","R","O","N","A","R","I","A","S"]
[845,"cómo se llaman las partes más pequeñas en que pueden divididirse las moléculas","atomos","A","T","O","M","O","S"]
[846,"cuál es el hidrato de carbono más sencillo que produce energía inmediata","la glucosa","G","L","U","C","O","S","A"]
[847,"qué ciencia estudia los procesos químicos en los seres vivos","la biología","B","I","O","L","O","G","I","A"]
[848,"qué nombre recibe la imagen que vemos en un espejo","virtual","V","I","R","T","U","A","L"]
[849,"qué efectos produce el calor en la materia","dilatación","D","I","L","A","T","A","C","I","O","N"]
[850,"qué parte del esqueleto protege el encéfalo en un vertebrado","el cráneo","C","R","A","N","E","O"]
[851,"qué metal aparece siempre en una amalgama","el mercurio","M","E","R","C","U","R","I","O"]
[852,"qué elementos forman la sal común","el cloro y el sodio","C","L","O","R","O",null,"S","O","D","I","O"]
[853,"la gallina ¿ es un animal herbívoro, omnivoro o carnivoro","omnivoro","O","M","N","I","V","O","R","O"]
[854,"la Tierra gira alrededor del....","Sol","S","O","L"]
[855,"la corriente eléctrica que tiene un solo sentido se denomina","contínua","C","O","N","T","I","N","U","A"]
[856,"con qué otro nombre se conocen los movimientos sísmicos","seísmos o terremotos","T","E","R","R","E","M","O","T","O","S"]
[857,"cómo se llaman los bloques de hielo que flotan en el mar","icebergs","I","C","E","B","E","R","G","S"]
[858,"cómo se llama lo que recubre el cuerpo de un reptil","escamas","E","S","C","A","M","A","S"]
[859,"las partes de una planta son: raíz, tallo y ....","hojas","H","O","J","A","S"]
[860,"cómo se llama el zumo de las aceitunas","aceite","A","C","E","I","T","E"]
[861,"qué músculo tenemos entre la cavidad abdominal y los pulmones","el diafragma","D","I","A","F","R","A","G","M","A"]
[862,"qué parte del sistema nervioso está dentro de la columna vertebral","la medula espinal","M","E","D","U","L","A",null,"E","S","P","I","N","A","L"]
[863,"cómo se llaman las sustancias que fabrican los linfocitos contra las enfermedades","anticuerpos","A","N","T","I","C","U","E","R","P","O","S"]
[864,"cómo se llama a las reacciones de descomposición producidas por la corriente","electrólisis","E","L","E","C","T","R","O","L","I","S","I","S"]
[865,"qué nombre recibe la propiedad que tienen algunos cuerpos de atraer el hierro","magnetismo","M","A","G","N","E","T","I","S","M","O"]
[866,"qué invento marcó el inicio de la Revolución industrial","la máquina de vapor","M","A","Q","U","I","N","A",null,"D","E",null,"V","A","P","O","R"]
[867,"qué órgano purifican la sangre además de los pulmones","los riñones","R","I","Ñ","O","N","E","S"]
[868,"cuál es el músculo que impulsa y hace circular la sangre","el corazón","C","O","R","A","Z","O","N"]
[869,"la energía del Sol, por dónde la reciben las plantas","por las hojas","H","O","J","A","S"]
[870,"cómo llamamos al conjunto de animales que viven en un lugar","fauna","F","A","U","N","A"]
[871,"cómo denominamos al aumento de tamaño de los cuerpos debido al calor","dilatación","D","I","L","A","T","A","C","I","O","N"]
[872,"qué ciencia estudia los fósiles","la paleontología","P","A","L","E","O","N","T","O","L","O","G","I","A"]
[873,"qué máquina consta de un disco y una cuerda que se desliza por él","la polea","P","O","L","E","A"]
[874,"qué gas es imprescindible para una combustión","el oxígeno","O","X","I","G","E","N","O"]
[875,"qué es una cortisona","una hormona","H","O","R","M","O","N","A"]
[876,"cómo se denomina la parte del músculo por donde se une al hueso","tendón","T","E","N","D","O","N"]
[877,"qué músculos sirven para mover el brazo hacia adelante","los pectorales","P","E","C","T","O","R","A","L","E","S"]
[878,"cuál es el hueso más largo del cuerpo","el femur","F","E","M","U","R"]
[879,"qué minerales se extrae del los yacimientos de Rio Tinto","el cobre","C","O","B","R","E"]
[880,"qué enfermedad transmite la picadura del mosquito anofeles","el paludismo","P","A","L","U","D","I","S","M","O"]
[881,"qué día comienza el invierno","el 21 de diciiembre",2,1,null,"D","E",null,"D","I","C","I","E","M","B","R","E"]
[882,"con qué dientes desgarras los alimentos","con los caninos","C","A","N","I","N","O","S"]
[883,"dónde tiene más fuerza un imán en el centro o en los polos","en los polos","P","O","L","O","S"]
[884,"en que se descompone el almidón durante la digestión","en azúcares","A","Z","U","C","A","R","E","S"]
[885,"qué provoca el ácido láctico cuando se acumulan sus cristales en los músculos","agujetas","A","G","U","J","E","T","A","S"]
[886,"cuál es la unidad de trabajo en el sistema internacional ? el…","el julio","J","U","L","I","O"]
[887,"qué sistema forman el conjunto de hormonas y glándulas","el sistema endocrino","E","N","D","O","C","R","I","N","O"]
[888,"cuál es la especie animal que más influye sobre la naturaleza","la especie humana","H","U","M","A","N","A"]
[889,"qué le ocurre a un gas al comprimirlo suficientemente a temperatura constante ? pasa a estado…","pasa a estado líquido","L","I","Q","U","I","D","O"]
[890,"qué jugos se vierten sobre los alimentos en el duodeno","el jugo pancreático y la bilis","P","A","N","C","R","E","A","T","I","C","O",null,"B","I","L","I","S"]
[891,"qué función tienen los ribosomas en las células ? fabricar…","fabricar proteinas","P","R","O","T","E","I","N","A","S"]
[892," la sangre sale siempre del corazón por los... ?","ventrículos","V","E","N","T","R","I","C","U","L","O","S"]
[893,"qué sustancia enfria nuestra piel al evaporarse","el sudor","S","U","D","O","R"]
[894,"cuál es la parte del aparato digestivo que se encuentra entre el estómago y la faringe","el esófago","E","S","O","F","A","G","O"]
[895,"el ejercicio físico aumenta la  capacidad… ?","pulmonar","p","U","L","M","O","N","A","R"]
[896,"la vid. ¿ es un cultivo de secano o de regadio ?","de secano","S","E","C","A","N","O"]
[897,"qué sustancia segregan las gládulas sodoríparas","sudor","S","U","D","O","R"]
[898,"qué nombre reciben los conductos por los que sale la sangre del corazón","arterias","A","R","T","E","R","I","A","S"]
[899,"qué día comienza el otoño","el 21 de septiembre",2,1,null,"S","E","P","T","I","E","M","B","R","E"]
[900,"los alimentos de la boca pasan a la...","faringe","F","A","R","I","N","G","E"]
[901,"al endurecimiento de las arterias le llamamos...","arteriosclerosis","A","R","T","E","R","I","O","S","C","L","E","R","O","S","I","S"]
[902,"los animales que comen hierbas ¿ se llaman... ?","herbivoros","H","E","R","B","I","V","O","R","O","S"]
[903,"cuál es el nombre de las uvas secas","pasas","P","A","S","A","S"]
[904,"en qué estación del año se dan las fresas y las cerezas","en verano","V","E","R","A","N","O"]
[905,"di el nombre del animal que cuando amanece canta en el corral","el gallo","G","A","L","L","O"]
[906,"qué clase de minerales se necesitan para que funcione una central nuclear","minerales radioactivos","R","A","D","I","O","A","C","T","I","V","O","S"]
[907,"cómo llamamos a un imán artificial originado por un corriente eléctrica","electroimán","E","L","E","C","T","R","O","I","M","A","N"]
[908,"a través de qué cordón se alimenta el embrión","del cordón umbilical","U","M","B","I","L","I","C","A","L"]
[909,"cómo se llama el óvulo fecundado","cigoto o célula huevo","C","I","G","O","T","O"]
[910,"el trigo es un cultivo de… ?","secano","S","E","C","A","N","O"]
[911,"qué proceso comienza con la masticación y la insalivación","la digestión","D","I","G","E","S","T","I","O","N"]
[912,"qué nombre reciben las reacciones químicas que desprenden calor","exotérmicas","E","X","O","T","E","R","M","I","C","A","S"]
[913,"qué huesos protegen la médula espinal","las vértebras","V","E","R","T","E","B","R","A","S"]
[914,"qué es un lugar lleno de árboles","un bosque","B","O","S","Q","U","E"]
[915,"cuál es la fórmula del ácido clorhídrico","H C L","H","C","L"]
[916,"la planta del café es matorral o arbusto","arbusto","A","R","B","U","S","T","O"]
[917,"a qué tipo de mamífero corresponde la jirafa","rumiante","R","U","M","I","A","N","T","E"]
[918,"cuándo el magma sale al exterior de un volcán  ¿ qué nombre recibe ?","lava","L","A","V","A"]
[919,"qué árbol lleva el escudo de Madrid","madroño","M","A","D","R","O","Ñ","O"]
[920,"qué forma el vapor de agua condensado por el frio de la noche","el rocio","R","O","C","I","O"]
[921,"para qué les sirven los cilios y los flagelos a las células ? para…","para desplazarse","D","E","S","P","L","A","Z","A","R","S","E"]
[922,"en qué cavidades pulmonares se da el intercambio de gases con la sangre","en los alveolos pulmonares","A","L","V","E","O","L","O","S"]
[923,"qué membrana separa el oído externo del interno","el timpano","T","I","M","P","A","N","O"]
[924,"qué seres transforman la materia inorganica en orgánica ","los vegetales","V","E","G","E","T","A","L","E","S"]
[925,"qué nombre recibe la parte comestible de la patata","tubérculo","T","U","B","E","R","C","U","L","O"]
[926,"por dónde sale la leche de vaca","por las ubres","L","A","S",null,"U","B","R","E","S"]
[927,"quién  es la madre del potro","la yegua","Y","E","G","U","A"]
[928,"qué es un jilguero","un pájaro","P","A","J","A","R","O"]
[929,"en qué abultamientos del sistema linfático se acumulan sustancias nocivas","en los ganglios","G","A","N","G","L","I","O","S"]
[930,"cómo se llaman los sonidos que no podemos oir debido a su alta frecuencia","ultrasonidos","U","L","T","R","A","S","O","N","I","D","O","S"]
[931,"dónde se produce la voz humana","en las cuerdas vocales","C","U","E","R","D","A","S ",null,"V","O","C","A","L","E","S"]
[932,"con qué sustancia se mezcla el alimento en la boca","con la saliva","S","A","L","I","V","A"]
[933,"cómo se llaman los animales que viven en tierra y en agua","anfibios","A","N","F","I","B","I","O","S"]
[934,"a partir de qué se originó el petróleo","a partir de seres vivos","S","E","R","E","S",null,"V","I","V","O","S"]
[935,"con qué material se hace el pergamino","con piel de oveja","P","I","E","L",null,"D","E",null,"O","V","E","J","A"]
[936,"el estambre de la flor está  formado por la antena y el....","filamento","F","I","L","A","M","E","N","T","O"]
[937,"cómo se denominan los cuerpos que no dejan pasar la corriente eléctrica","aislantes","A","I","S","L","A","N","T","E","S"]
[938,"cómo se llama el acto que da lugar al naciemiento","parto","P","A","R","T","O"]
[939,"para qué sirve un dinamómetro","para medir las fuezas","M","E","D","I","R",null,"F","U","E","R","Z","A","S"]
[940,"cómo se llama la señal que deja el cordón umbilical","ombligo","O","M","B","L","I","G","O"]
[941,"qué corpusculos de la sangre son los encargados de taponar las heridas","las plaquetas","P","L","A","Q","U","E","T","A","S"]
[942,"cómo se llaman las plantas que  tienen flores ","fanerogamas","F","A","N","E","R","O","G","A","M","A","S"]
[943,"qué órgano almacena la orina","la vejiga de la orina","V","E","J","I","G","A"]
[944,"cómo se llaman las células sexuales masculinas","espermatozoides","E","S","P","E","R","M","A","T","O","Z","O","I","D","E","S"]
[945,"en qué océano se encuentra la fosa de las Marianas","en el Pacífico","P","A","C","I","F","I","C","O"]
[946,"cómo se denominan las bacterias que se alimentan de seres muertos","saprofitas","S","A","P","O","F","R","I","T","A","S"]
[947,"a través de que conducto llega el aire a los pulmones","de la tráquea","T","R","A","Q","U","E","A"]
[948,"el carbón es una roca ¿ de qué origen ?","vegetal","V","E","G","E","T","A","L"]
[949,"qué estación del año va después del otoño","el invierno","I","N","V","I","E","R","N","O"]
[950,"cómo se llama la parte que une la cabeza con el tronco","cuello","C","U","E","L","L","O"]
[951,"cómo llamamos a los animales que maman","mamíferos","M","A","M","I","F","E","R","O","S"]
[952,"en qué parte de las células vegetales tiene lugar la fotosíntesis","en los cloroplastos","C","L","O","R","O","P","L","A","S","T","O","S"]
[953,"en qué glándula se fabrica la hormona del crecimiento","en la hipófisis","H","I","P","O","F","I","S ","I","S"]
[954,"nosotros respiramos a través de los pulmones, los peces respiran por...","las branquias","B","R","A","N","Q","U","I","A","S"]
[955,"qué ciencia estudia los fenómenos atmosféricos","la metereología","M","E","T","E","R","O","L","O","G","I","A"]
[956,"qué tipo de microorganismos produce la gripe","un virus","V","I","R","U","S"]
[957,"cuáles son las siglas del ácido desoxirribonucleico","A D N","A","D","N"]
[958,"a las pepitas del interior de las frutas también se les llama...","semillas","S","E","M","I","L","L","A","S"]
[959,"la mantequilla se obtiene de la...","leche","L","E","C","H","E"]
[960,"qué toman del aire las plantas durante la noche","el oxígeno","O","X","I","G","E","N","O"]
[961,"en qué era aparecieron los grandes reptiles sobre la Tierra","Secundaria","S","E","C","U","N","D","A","R","I","A"]
[962,"qué aparato mide la  tensión de la corriente","el voltímetro","V","O","L","T","I","M","E","T","R","O"]
[963,"en qué órgano sexual se desarrolla el feto","en el útero","U","T","E","R","O"]
[964,"yo soy... de mis Tios","sobrino","S","O","B","R","I","N","O"]
[965,"es la lagartija un… ?","reptil","R","E","P","T","I","L"]
[966,"la estación en que florecen las plantas ¿ se llama ?","primavera","P","R","I","M","A","V","E","R","A"]
[967,"cuántas patas tiene un canguro","cuatro","C","U","A","T","R","O"]
[968,"¿de que artista francés son las ilustraciones más célebres de \"el quijote\" ?","Gustavo Dore","G","U","S","T","A","V","O",null,"D","O","R","E"]
[969,"¿como se llamaba la máquina de calcular de pascal ?","pascalina","P","A","S","C","A","L","I","N","A"]
[970,"¿que instrumento se usa para medir las lineas de un plano ?","curvimetro","C","U","R","V","I","M","E","T","R","O"]
[971,"¿En qué año se fundó el F. C. Barcelona ?",1899,1,8,9,9]
[972,"¿en que deporte los puntos se denominan tocados ? ","esgrima","E","S","G","R","I","M","A"]
[973,"¿que pais ha conquistado mas titulos en los campeonatos mundiales de petanca?","Francia","F","R","A","N","C","I","A"]
[974,"¿quien fue el adversario de Jose Luis Nuñez en las elecciones a la presidencia del barcelona de 1994 ?","Sixto Cambra","S","I","X","T","O",null,"C","A","M","B","R","A"]
[975,"¿A quién le metió mano Míchel en pleno partido?","Valderrama","V","A","L","D","E","R","R","A","M","A"]
[976,"¿Cuál es el apodo de Johan Cruyff ?","flaco","F","L","A","C","O"]
[977,"¿Cuántas grandes vueltas (Vuelta, Giro y Tour) ganó Miguel Indurain ?",7,7]
[978,"¿En qué año ganó Miguel Indurain su tercer Tour de Francia ?",1993,1,9,9,3]
[979,"¿A qué componente electrónico sustituyeron los transistores ?","valvulas de vacio","V","A","L","V","U","L","A","S",null,"D","E",null,"V","A","C","I","O"]
[980,"¿Cuál es la denominación química de la sal común ?","cloruro sodico","C","L","O","R","U","R","O",null,"S","O","D","I","C","O"]
[981,"¿De qué elemento químico está compuesto el diamante ?","carbono","C","A","R","B","O","N","O"]
[982,"¿Quién escribió \"Historia del tiempo\" ?","Stephen Hawking","S","T","E","P","H","E","N",null,"H","A","W","K","I","N","G"]
[983,"Xenón, neón, helio, radón, argón... ¿Qué gas noble falta ?","kripton","K","R","I","P","T","O","N"]
[984,"Sistema de 2 conductores, separados en toda su superficie por un medio aislante","condensador","C","O","N","D","E","N","S ","A","D","O","R"]
[985,"Que elemento tiene un periodo de semidesintegracion de unos 5.000 años","carbono 14","C","A","R","B","O","N","O",null,1,4]
[986,"Que es un bar ? una unidad de…","unidad de presion","P","R","E","S","I","O","N"]
[987,"unidad de angulo plano","radian","R","A","D","I","A","N"]
[988,"unidad de frecuencia","hertz","H","E","R","T","Z"]
[989,"Nombre (en castellano) del primer rey borbon de España","Felipe de Anjou","F","E","L","I","P","E",null,"D","E",null,"A","N","J","O","U"]
[990,"¿que antiguos documentos fueron descubiertos por un pastor beduino en el cercano oriente en 1947 ? los…  del Mar Muerto","los manuscritos del Mar  Muerto","M","A","N","U","S","C","R","I","S","T","O","S"]
[991,"¿que imperio precedió al otomano ?","bizantino","B","I","Z","A","N","T","I","N","O"]
[992,"capital de Estados Unidos","Washington D.C.","W","A","S","H","I","N","G","T","O","N"]
[993,"Washington D.C. es capital ","Estados Unidos","E","S","T","A","D","O","S ",null,"U","N","I","D","O","S"]
[994,"Luxemburgo es capital de","Luxemburgo","L","U","X","E","M","B","U","R","G","O"]
[995,"cómo se llama la persona que se dedica a disecar animales ?","taxidermista","T","A","X","I","D","E","R","M","I","S","T","A"]
[996,"cómo se llama el viento muy calido que siempre sopla en la misma zona ?","siroco","S","I","R","O","C","O"]
[997,"cómo se llama la marcha mas rapida del caballo ?","galope","G","A","L","O","P","E"]
[998,"cómo se llama quitarle la vaina a los guisantes ? ","desgranar","D","E","S","G","R","A","N","A","R"]
[999,"cómo se llaman las plumas de las alas ?","remeras","R","E","M","E","R","A","S "]
[1000,"cómo se llaman las tierras de labor que no se riegan?","secano","S","E","C","A","N","O"]
[1001,"cómo se llaman las uñas retractiles de los felinos ?","garras","G","A","R","R","A","S"]
[1002]
[1003]
[1004]
[1005]
[1006]
[1007]
[1008]

{"sheet":"Hoja1","index":1,"n_rows":19,"n_cols":25,"rows_kept":19,"cut":false,"hidden":false,"merged":[[18,5,18,10],[0,5,0,22],[13,5,13,22],[14,5,14,19],[7,5,7,9],[7,11,7,15],[9,5,9,22]]}
[null,null,null,null,null,{"$f":"F14","v":"¿en que año se fundó el partido socialista obrero español"},null,null,null,null,null,null,null,null,null,null,null,null,null,null,null,null,null,258,{"$f":"RANDBETWEEN(1,1002)","v":593}]
[null,null,null,null,null,{"$f":"VLOOKUP($X$1,Hoja2!$A1:$U2000,4,FALSE)","v":1},{"$f":"VLOOKUP($X$1,Hoja2!$A1:$U2000,5,FALSE)","v":8},{"$f":"VLOOKUP($X$1,Hoja2!$A1:$U2000,6,FALSE)","v":7},{"$f":"VLOOKUP($X$1,Hoja2!$A1:$U2000,7,FALSE)","v":9},{"$f":"VLOOKUP($X$1,Hoja2!$A1:$U2000,8,FALSE)","v":0},{"$f":"VLOOKUP($X$1,Hoja2!$A1:$U2000,9,FALSE)","v":0},{"$f":"VLOOKUP($X$1,Hoja2!$A1:$U2000,10,FALSE)","v":0},{"$f":"VLOOKUP($X$1,Hoja2!$A1:$U2000,11,FALSE)","v":0},{"$f":"VLOOKUP($X$1,Hoja2!$A1:$U2000,12,FALSE)","v":0},{"$f":"VLOOKUP($X$1,Hoja2!$A1:$U2000,13,FALSE)","v":0},{"$f":"VLOOKUP($X$1,Hoja2!$A1:$U2000,14,FALSE)","v":0},{"$f":"VLOOKUP($X$1,Hoja2!$A1:$U2000,15,FALSE)","v":0},{"$f":"VLOOKUP($X$1,Hoja2!$A1:$U2000,16,FALSE)","v":0},{"$f":"VLOOKUP($X$1,Hoja2!$A1:$U2000,17,FALSE)","v":0},{"$f":"VLOOKUP($X$1,Hoja2!$A1:$U2000,18,FALSE)","v":0},{"$f":"VLOOKUP($X$1,Hoja2!$A1:$U2000,19,FALSE)","v":0},{"$f":"VLOOKUP($X$1,Hoja2!$A1:$U2000,20,FALSE)","v":0},{"$f":"VLOOKUP($X$1,Hoja2!$A1:$U2000,21,FALSE)","v":0}]
[null,null,null,null,null,{"$f":"F2","v":1},{"$f":"G2","v":8},7,9,0,0,0,0,0,0,0,0,0,0,0,0,0,0]
[null,null,null,null,null,{"$f":"IF($K$9=F2,F2,IF($L$9=F2,F2,IF($M$9=F2,F2,IF($N$9=F2,F2,IF($O$9=F2,F2,IF($P$9=F2,F2,\"\"))))))","v":""},{"$f":"IF($K$9=G2,G2,IF($L$9=G2,G2,IF($M$9=G2,G2,IF($N$9=G2,G2,IF($O$9=G2,G2,IF($P$9=G2,G2,\"\"))))))","v":""},"","",0,0,0,0,0,0,0,0,0,0,0,0,0,0]
[null,null,null,null,null,{"$f":"F4","v":""},{"$f":"G4","v":""},"","",0,0,0,0,0,0,0,0,0,0,0,0,0,0]
[null,null,null,null,null,null,null,null,null,null,null,null,null,null,null,null,null,null,null,null,null,null,null,null,{"$f":"RANDBETWEEN(1,21)","v":13}]
[]
[]
[]
[]
[]
[]
[]
[null,null,null,null,null,{"$f":"VLOOKUP(X1,Hoja2!A1:C1002,2,FALSE)","v":"¿en que año se fundó el partido socialista obrero español"}]
[null,null,null,null,null,{"$f":"VLOOKUP(X1,Hoja2!A1:C1002,3,FALSE)","v":1879}]
[null,null,null,null,null,null,2,15,19,20,6]
[null,null,null,null,null,null,{"$f":"VLOOKUP(G16,Hoja3!A1:B21,2,FALSE)","v":"C"},{"$f":"VLOOKUP(H16,Hoja3!A1:B21,2,FALSE)","v":"S"},{"$f":"VLOOKUP(I16,Hoja3!A1:B21,2,FALSE)","v":"X"},{"$f":"VLOOKUP(J16,Hoja3!A1:B21,2,FALSE)","v":"Y"},{"$f":"VLOOKUP(K16,Hoja3!A1:B21,2,)","v":"H"}]
[]
[null,null,null,null,null,{"$f":"VLOOKUP(X1,Hoja2!A1:V1960,22,FALSE)","v":0},null,null,null,null,null,"RESPUESTA"]

{"sheet":"Hoja3","index":2,"n_rows":21,"n_cols":2,"rows_kept":21,"cut":false,"hidden":true,"merged":[]}
[1,"B"]
[2,"C"]
[3,"D"]
[4,"F"]
[5,"G"]
[6,"H"]
[7,"J"]
[8,"K"]
[9,"L"]
[10,"M"]
[11,"N"]
[12,"P"]
[13,"Q"]
[14,"R"]
[15,"S"]
[16,"T"]
[17,"V"]
[18,"W"]
[19,"X"]
[20,"Y"]
[21,"Z"]